{"text_format":"1","workbook":"xlsx","n_sheets":11,"sheets":["Introduction","Project Data","Stormwater Instructions","Buffer Instructions","Lake Shoreland Instructions","Floodplain Stream Instructions","Road Instructions","Forestry Instructions","Agriculture Instructions","Dropdowns","Sheet1"],"not_rendered":{"charts":0,"images":5,"macros":1,"external_links":0,"defined_names":1,"comments":4,"pivot_tables":0},"unopened":[],"bounds":{"document_bytes":16777216,"sheet_cells":100000,"rows_first":2000,"rows_last":500,"rows_between":2000,"halvings":0,"cell_chars":16384,"cell_head_chars":4096},"cells_cut":0,"cells_raw":0,"read":"whole","date_system":"1900"}

{"sheet":"Introduction","index":0,"n_rows":11,"n_cols":1,"rows_kept":11,"cut":false,"hidden":false,"merged":[]}
["Final Performance Report Instructions"]
["The DEC Clean Water Initiative Program (CWIP) funds clean water projects to make progress toward meeting water quality restoration targets outlined in the Total Maximum Daily Loads (or TMDLs)."]
["In order to track progress towards achieving TMDLs, CWIP estimates the pollutant reductions associated with clean water projects. The process of estimating nutrient and sediment reductions associated with clean water projects is referred to as pollutant accounting. To estimate pollutant reductions, CWIP and partners must collect many types of data on the clean water projects implemented (i.e., watershed, land use, storage volume, area treated, etc.), which is referred to as tracking. Additional information on the tracking and accounting methods can be found here: "]
["https://dec.vermont.gov/water-investment/cwi/projects/tracking-accounting "]
["This reporting template allows CWIP to collect the data needed to report on progress towards achieving Vermont's water quality goals. All CWIP grantees and contractors are required to complete this final reporting form and submit it to their Technical Project Manager (TPM) as a final reporting form. The data submitted in this form are uploaded to the Watersheds Projects Database (WPD) and reported in the Vermont Clean Water Initiative Annual Performance Report, which is statutorily required to meet accountability and reporting requirements set forth by the Vermont State Legislature and US EPA."]
["All projects reported in this form must have a WPD ID. To find the WPD ID for a project that is already in the database, please visit the Watershed Projects Database Search and search for the project using the available filters and search features. If a project has not yet been recorded in the WPD, use the Clean Water Project - New Project Form available in ANR Online to submit the project information for review and approval by the Watershed Planning Program. Upon approval of the form submission, the project will be automatically assigned a WPD ID that can be found via the Watershed Projects Database Search. "]
["Watershed Projects Database Search:"]
["https://anrweb.vt.gov/DEC/cleanWaterDashboard/WPDSearch.aspx"]
["Clean Water Project - New Project Form: "]
["https://anronline.vermont.gov/?FormTag=CWPNewProject"]
["General instructions regarding BMP reporting are available in sector-specific tabs below. Each column heading within the Final Performance Report also has guidance to help you complete this form. If you have any further questions about this form, please reach out to your TPM or Claire Madden (claire.madden@vermont.gov). Thank you in advance for reporting the data needed to track progress towards achieving water quality goals!"]

{"sheet":"Project Data","index":1,"n_rows":100,"n_cols":136,"rows_kept":100,"cut":false,"hidden":false,"merged":[[4,113,4,124],[4,125,4,135],[4,102,4,112],[4,77,4,101],[0,0,0,4],[1,1,1,4],[2,1,2,4],[4,65,4,76],[4,44,4,64],[4,25,4,43],[3,0,3,6],[4,0,4,9],[4,16,4,23],[4,10,4,15]]}
["Clean Water Initiative Program Final Reporting Form",null,null,null,null,"Legend (cell fill color)"]
["Organization*",null,null,null,null,null,"calculated cell, do not edit"]
["Report Date*",null,null,null,null,null,"not applicable based on previous selection, do not edit"]
["* Starred fields are required if cells are not filled black. Project type specifications and data requirements are subject to change. Please refer to the most recent version of the Clean Water Initiative Funding Policy for up to date information on project types, funding eligibility, applicable performance measures, and milestones & deliverables. Changes to pollutant reduction data requirements will be outlined in future versions of CWIP's Standard Operating Procedures for Tracking & Accounting, which are subject to 30-day public notice prior to being adopted. "]
["General Project Information",null,null,null,null,null,null,null,null,null,"Funding Information",null,null,null,null,null,"Project Closeout Information",null,null,null,null,null,null,null,null,"Stormwater Project Information",null,null,null,null,null,null,null,null,null,null,null,null,null,null,null,null,null,null,"Riparian Buffer Planting Information",null,null,null,null,null,null,null,null,null,null,null,null,null,null,null,null,null,null,null,null,"Lake Shoreland Project Information",null,null,null,null,null,null,null,null,null,null,null,"Floodplain or Stream Restoration Project Information",null,null,null,null,null,null,null,null,null,null,null,null,null,null,null,null,null,null,null,null,null,null,null,null,"Road Project Information",null,null,null,null,null,null,null,null,null,null,"Forest Road Erosion Control Project Information",null,null,null,null,null,null,null,null,null,null,null,"Agricultural Project (non-RAP) Information"]
["WPD ID*","Row Type*","Project Manager / Sub-Grantee*","Project Name*","Project Description*","Project Type*","Project Latitude* (5 decimal places)","Project Longitude* (5 decimal places)","Town, County or Region*","Watershed Sub-basin (Watershed Boundary ID)*","Is this project funded under a block grant?*","Grant/Contract Number*","Block Grant WPD ID*","Date Project Selected for Funding","Funding Amount Awarded*","Date of Grant/Contract Execution*","Final Project Funding Amount*","Match/Leverage Amount","Match/Leverage Source(s)","Project Completed Date*","Completed Performance Measure 1*","Performance Measure Amount 1*","Completed Performance Measure 2","Performance Measure Amount 2","General Comments/Notes","Stormwater BMP Type*","Date BMP installed","BMP Latitude* (5 decimal places)","BMP Longitude* (5 decimal places)","TMDL Drainage Area*","MS4 Community","Infiltration Rate (in/hr)*","Porous Pavement Filter Course Depth (inches)*","BMP Storage Volume (cubic ft)*","Acres of impervious within BMP drainage area*","Acres of pervious within BMP drainage area*","Is this a retrofit of an existing BMP?*","Original acres of impervious within BMP drainage area* ","Original acres of pervious within BMP drainage area*","Original BMP Storage Volume (cubic ft)*","Volume of Gully Erosion Restored/Remediated (cubic ft)*","Extent of Gully Erosion Remediation","Estimated Age of Gully Erosion*","Stormwater BMP Notes","Buffer Mid-Point Latitude* (5 decimal places)","Buffer Mid-Point Longitude* (5 decimal places)","Drainage Area*","Average Buffer Width (ft)*","Buffer Length (feet)*","Buffer acres*","Prior land use of buffer area ","Upland buffer drainage area (5x buffer acres)","Upland buffer drainage area land use #1*","Percent of upland land use #1*","Acres of upland land use #1","Upland buffer drainage area land use #2","Percent of upland land use #2","Acres of upland land use #2","Upland buffer drainage area land use #3","Percent of upland land use #3","Acres of upland land use #3","Does impervious drain to a collection system?","Sum of land use percentages","Date Planted","Buffer Notes","Lake Shoreland Practice Implemented*","BMP Latitude* (5 decimal places)","BMP Longitude* (5 decimal places)","TMDL Drainage Area*","Length of shoreline restoration (ft)*","Average bank height of project (ft)*","Average shoreline recession rate (inches/year)*","Number of Trees Planted*","Land Use of Planting Area*","Native Revegetation Established (acres)*","Date Practice Installed","Shoreline restoration notes","Floodplain and River Corridor Restoration Practice(s) Implemented*","River Corridor ID*","Unconstrained River Corridor Acrea (acres)","Robust Protection Area (acres)","Moderate Protection Area (acres)","Low Protection Area (acres)","No Protection Area (acres)","River Corridor Area (acres)","Naturally Vegetated Buffer Area (acres)","River Corridor Incision Ratio","Area with Vertical Change (acres)","Reach Connectivity","Project Area Connectivity","Floodplain/River Corridor Project Area (acres)","Stream Restoration Practice(s) Implemented*","Stream ID*","Road Disconnection in Project (miles)","Agricultural Land Disconnection in Project (acres)","Stream Segment Incision Ratio","Area with Vertical Change (acres)","FFI detailed input and output export files (or screenshots)","Estimated total phosphorus reduction achieved through implementation - Year 1 (kg)","Estimated total phosphorus reduction achieved through implementation - Year 2+ (kg/year)","Date Restoration Complete","Floodplain/Stream Restoration Notes","TMDL Drainage Area*","Road Classification Most Similar to Road Remediation Site*","Segment Midpoint Latitude* (5 decimal places)","Segment Midpoint Longitude* (5 decimal places)","Length of Road Remediated (meters)*","Road Segment Average Slope (%)*","Volume of Erosion (cubic feet)*","Road Condition Pre-Remediation*","Road Condition Post-Remediation*","Date Practice Installed","Road Proejct Notes","Road Segment ID","Forest Road Type*","County*","Segment Midpoint Latitude* (5 decimal places)","Segment Midpoint Longitude* (5 decimal places)","Length of Road Segment Remediated (meters)*","Average Road Slope (%)*","Predominant Soil Type (if known)","Road Condition Pre-Remediation*","Road Condition Post-Remediation*","Date Practice Installed","Forest Road Notes","Field ID*","Practice Area Latitude* (5 decimal places)","Practice Area Longitude* (5 decimal places)","Practice Type*","Practice Acres*","HUC 12 Watershed*","Practice Area Land Use*","Field Hydrologic Soil Group Type","Field Average Slope","Date BMP Installed","Agricultural BMP Notes"]
[null,null,null,null,null,"Stormwater - Implementation",null,null,null,null,null,null,null,null,null,null,null,null,null,null,null,null,null,null,null,"Infiltration Trench",null,null,null,null,null,null,null,null,null,null,null,null,null,null,null,null,null,null,null,null,null,null,null,{"$f":"(AV7*AW7)/43560","v":0},null,{"$f":"AX7*5","v":0},null,null,{"$f":"BB7*AZ7","v":0},null,null,{"$f":"BE7*AZ7","v":0},null,null,{"$f":"BH7*AZ7","v":0},null,{"$f":"BH7+BE7+BB7","v":0}]
[null,null,null,null,null,null,null,null,null,null,null,null,null,null,null,null,null,null,null,null,null,null,null,null,null,null,null,null,null,null,null,null,null,null,null,null,null,null,null,null,null,null,null,null,null,null,null,null,null,{"$f":"(AV8*AW8)/43560","v":0},null,{"$f":"AX8*5","v":0},null,null,{"$f":"BB8*AZ8","v":0},null,null,{"$f":"BE8*AZ8","v":0},null,null,{"$f":"BH8*AZ8","v":0},null,{"$f":"BH8+BE8+BB8","v":0}]
[null,null,null,null,null,null,null,null,null,null,null,null,null,null,null,null,null,null,null,null,null,null,null,null,null,null,null,null,null,null,null,null,null,null,null,null,null,null,null,null,null,null,null,null,null,null,null,null,null,0,null,0,null,null,0,null,null,0,null,null,0,null,0]
[null,null,null,null,null,null,null,null,null,null,null,null,null,null,null,null,null,null,null,null,null,null,null,null,null,null,null,null,null,null,null,null,null,null,null,null,null,null,null,null,null,null,null,null,null,null,null,null,null,0,null,0,null,null,0,null,null,0,null,null,0,null,0]
[null,null,null,null,null,null,null,null,null,null,null,null,null,null,null,null,null,null,null,null,null,null,null,null,null,null,null,null,null,null,null,null,null,null,null,null,null,null,null,null,null,null,null,null,null,null,null,null,null,0,null,0,null,null,0,null,null,0,null,null,0,null,0]
[null,null,null,null,null,null,null,null,null,null,null,null,null,null,null,null,null,null,null,null,null,null,null,null,null,null,null,null,null,null,null,null,null,null,null,null,null,null,null,null,null,null,null,null,null,null,null,null,null,0,null,0,null,null,0,null,null,0,null,null,0,null,0]
[null,null,null,null,null,null,null,null,null,null,null,null,null,null,null,null,null,null,null,null,null,null,null,null,null,null,null,null,null,null,null,null,null,null,null,null,null,null,null,null,null,null,null,null,null,null,null,null,null,0,null,0,null,null,0,null,null,0,null,null,0,null,0]
[null,null,null,null,null,null,null,null,null,null,null,null,null,null,null,null,null,null,null,null,null,null,null,null,null,null,null,null,null,null,null,null,null,null,null,null,null,null,null,null,null,null,null,null,null,null,null,null,null,0,null,0,null,null,0,null,null,0,null,null,0,null,0]
[null,null,null,null,null,null,null,null,null,null,null,null,null,null,null,null,null,null,null,null,null,null,null,null,null,null,null,null,null,null,null,null,null,null,null,null,null,null,null,null,null,null,null,null,null,null,null,null,null,0,null,0,null,null,0,null,null,0,null,null,0,null,0]
[null,null,null,null,null,null,null,null,null,null,null,null,null,null,null,null,null,null,null,null,null,null,null,null,null,null,null,null,null,null,null,null,null,null,null,null,null,null,null,null,null,null,null,null,null,null,null,null,null,0,null,0,null,null,0,null,null,0,null,null,0,null,0]
[null,null,null,null,null,null,null,null,null,null,null,null,null,null,null,null,null,null,null,null,null,null,null,null,null,null,null,null,null,null,null,null,null,null,null,null,null,null,null,null,null,null,null,null,null,null,null,null,null,0,null,0,null,null,0,null,null,0,null,null,0,null,0]
[null,null,null,null,null,null,null,null,null,null,null,null,null,null,null,null,null,null,null,null,null,null,null,null,null,null,null,null,null,null,null,null,null,null,null,null,null,null,null,null,null,null,null,null,null,null,null,null,null,0,null,0,null,null,0,null,null,0,null,null,0,null,0]
[null,null,null,null,null,null,null,null,null,null,null,null,null,null,null,null,null,null,null,null,null,null,null,null,null,null,null,null,null,null,null,null,null,null,null,null,null,null,null,null,null,null,null,null,null,null,null,null,null,0,null,0,null,null,0,null,null,0,null,null,0,null,0]
[null,null,null,null,null,null,null,null,null,null,null,null,null,null,null,null,null,null,null,null,null,null,null,null,null,null,null,null,null,null,null,null,null,null,null,null,null,null,null,null,null,null,null,null,null,null,null,null,null,0,null,0,null,null,0,null,null,0,null,null,0,null,0]
[null,null,null,null,null,null,null,null,null,null,null,null,null,null,null,null,null,null,null,null,null,null,null,null,null,null,null,null,null,null,null,null,null,null,null,null,null,null,null,null,null,null,null,null,null,null,null,null,null,0,null,0,null,null,0,null,null,0,null,null,0,null,0]
[null,null,null,null,null,null,null,null,null,null,null,null,null,null,null,null,null,null,null,null,null,null,null,null,null,null,null,null,null,null,null,null,null,null,null,null,null,null,null,null,null,null,null,null,null,null,null,null,null,0,null,0,null,null,0,null,null,0,null,null,0,null,0]
[null,null,null,null,null,null,null,null,null,null,null,null,null,null,null,null,null,null,null,null,null,null,null,null,null,null,null,null,null,null,null,null,null,null,null,null,null,null,null,null,null,null,null,null,null,null,null,null,null,0,null,0,null,null,0,null,null,0,null,null,0,null,0]
[null,null,null,null,null,null,null,null,null,null,null,null,null,null,null,null,null,null,null,null,null,null,null,null,null,null,null,null,null,null,null,null,null,null,null,null,null,null,null,null,null,null,null,null,null,null,null,null,null,0,null,0,null,null,0,null,null,0,null,null,0,null,0]
[null,null,null,null,null,null,null,null,null,null,null,null,null,null,null,null,null,null,null,null,null,null,null,null,null,null,null,null,null,null,null,null,null,null,null,null,null,null,null,null,null,null,null,null,null,null,null,null,null,0,null,0,null,null,0,null,null,0,null,null,0,null,0]
[null,null,null,null,null,null,null,null,null,null,null,null,null,null,null,null,null,null,null,null,null,null,null,null,null,null,null,null,null,null,null,null,null,null,null,null,null,null,null,null,null,null,null,null,null,null,null,null,null,0,null,0,null,null,0,null,null,0,null,null,0,null,0]
[null,null,null,null,null,null,null,null,null,null,null,null,null,null,null,null,null,null,null,null,null,null,null,null,null,null,null,null,null,null,null,null,null,null,null,null,null,null,null,null,null,null,null,null,null,null,null,null,null,0,null,0,null,null,0,null,null,0,null,null,0,null,0]
[null,null,null,null,null,null,null,null,null,null,null,null,null,null,null,null,null,null,null,null,null,null,null,null,null,null,null,null,null,null,null,null,null,null,null,null,null,null,null,null,null,null,null,null,null,null,null,null,null,0,null,0,null,null,0,null,null,0,null,null,0,null,0]
[null,null,null,null,null,null,null,null,null,null,null,null,null,null,null,null,null,null,null,null,null,null,null,null,null,null,null,null,null,null,null,null,null,null,null,null,null,null,null,null,null,null,null,null,null,null,null,null,null,0,null,0,null,null,0,null,null,0,null,null,0,null,0]
[null,null,null,null,null,null,null,null,null,null,null,null,null,null,null,null,null,null,null,null,null,null,null,null,null,null,null,null,null,null,null,null,null,null,null,null,null,null,null,null,null,null,null,null,null,null,null,null,null,0,null,0,null,null,0,null,null,0,null,null,0,null,0]
[null,null,null,null,null,null,null,null,null,null,null,null,null,null,null,null,null,null,null,null,null,null,null,null,null,null,null,null,null,null,null,null,null,null,null,null,null,null,null,null,null,null,null,null,null,null,null,null,null,0,null,0,null,null,0,null,null,0,null,null,0,null,0]
[null,null,null,null,null,null,null,null,null,null,null,null,null,null,null,null,null,null,null,null,null,null,null,null,null,null,null,null,null,null,null,null,null,null,null,null,null,null,null,null,null,null,null,null,null,null,null,null,null,0,null,0,null,null,0,null,null,0,null,null,0,null,0]
[null,null,null,null,null,null,null,null,null,null,null,null,null,null,null,null,null,null,null,null,null,null,null,null,null,null,null,null,null,null,null,null,null,null,null,null,null,null,null,null,null,null,null,null,null,null,null,null,null,0,null,0,null,null,0,null,null,0,null,null,0,null,0]
[null,null,null,null,null,null,null,null,null,null,null,null,null,null,null,null,null,null,null,null,null,null,null,null,null,null,null,null,null,null,null,null,null,null,null,null,null,null,null,null,null,null,null,null,null,null,null,null,null,0,null,0,null,null,0,null,null,0,null,null,0,null,0]
[null,null,null,null,null,null,null,null,null,null,null,null,null,null,null,null,null,null,null,null,null,null,null,null,null,null,null,null,null,null,null,null,null,null,null,null,null,null,null,null,null,null,null,null,null,null,null,null,null,0,null,0,null,null,0,null,null,0,null,null,0,null,0]
[null,null,null,null,null,null,null,null,null,null,null,null,null,null,null,null,null,null,null,null,null,null,null,null,null,null,null,null,null,null,null,null,null,null,null,null,null,null,null,null,null,null,null,null,null,null,null,null,null,0,null,0,null,null,0,null,null,0,null,null,0,null,0]
[null,null,null,null,null,null,null,null,null,null,null,null,null,null,null,null,null,null,null,null,null,null,null,null,null,null,null,null,null,null,null,null,null,null,null,null,null,null,null,null,null,null,null,null,null,null,null,null,null,0,null,0,null,null,0,null,null,0,null,null,0,null,0]
[null,null,null,null,null,null,null,null,null,null,null,null,null,null,null,null,null,null,null,null,null,null,null,null,null,null,null,null,null,null,null,null,null,null,null,null,null,null,null,null,null,null,null,null,null,null,null,null,null,0,null,0,null,null,0,null,null,0,null,null,0,null,0]
[null,null,null,null,null,null,null,null,null,null,null,null,null,null,null,null,null,null,null,null,null,null,null,null,null,null,null,null,null,null,null,null,null,null,null,null,null,null,null,null,null,null,null,null,null,null,null,null,null,0,null,0,null,null,0,null,null,0,null,null,0,null,0]
[null,null,null,null,null,null,null,null,null,null,null,null,null,null,null,null,null,null,null,null,null,null,null,null,null,null,null,null,null,null,null,null,null,null,null,null,null,null,null,null,null,null,null,null,null,null,null,null,null,0,null,0,null,null,0,null,null,0,null,null,0,null,0]
[null,null,null,null,null,null,null,null,null,null,null,null,null,null,null,null,null,null,null,null,null,null,null,null,null,null,null,null,null,null,null,null,null,null,null,null,null,null,null,null,null,null,null,null,null,null,null,null,null,0,null,0,null,null,0,null,null,0,null,null,0,null,0]
[null,null,null,null,null,null,null,null,null,null,null,null,null,null,null,null,null,null,null,null,null,null,null,null,null,null,null,null,null,null,null,null,null,null,null,null,null,null,null,null,null,null,null,null,null,null,null,null,null,0,null,0,null,null,0,null,null,0,null,null,0,null,0]
[null,null,null,null,null,null,null,null,null,null,null,null,null,null,null,null,null,null,null,null,null,null,null,null,null,null,null,null,null,null,null,null,null,null,null,null,null,null,null,null,null,null,null,null,null,null,null,null,null,0,null,0,null,null,0,null,null,0,null,null,0,null,0]
[null,null,null,null,null,null,null,null,null,null,null,null,null,null,null,null,null,null,null,null,null,null,null,null,null,null,null,null,null,null,null,null,null,null,null,null,null,null,null,null,null,null,null,null,null,null,null,null,null,0,null,0,null,null,0,null,null,0,null,null,0,null,0]
[null,null,null,null,null,null,null,null,null,null,null,null,null,null,null,null,null,null,null,null,null,null,null,null,null,null,null,null,null,null,null,null,null,null,null,null,null,null,null,null,null,null,null,null,null,null,null,null,null,0,null,0,null,null,0,null,null,0,null,null,0,null,0]
[null,null,null,null,null,null,null,null,null,null,null,null,null,null,null,null,null,null,null,null,null,null,null,null,null,null,null,null,null,null,null,null,null,null,null,null,null,null,null,null,null,null,null,null,null,null,null,null,null,0,null,0,null,null,0,null,null,0,null,null,0,null,0]
[null,null,null,null,null,null,null,null,null,null,null,null,null,null,null,null,null,null,null,null,null,null,null,null,null,null,null,null,null,null,null,null,null,null,null,null,null,null,null,null,null,null,null,null,null,null,null,null,null,0,null,0,null,null,0,null,null,0,null,null,0,null,0]
[null,null,null,null,null,null,null,null,null,null,null,null,null,null,null,null,null,null,null,null,null,null,null,null,null,null,null,null,null,null,null,null,null,null,null,null,null,null,null,null,null,null,null,null,null,null,null,null,null,0,null,0,null,null,0,null,null,0,null,null,0,null,0]
[null,null,null,null,null,null,null,null,null,null,null,null,null,null,null,null,null,null,null,null,null,null,null,null,null,null,null,null,null,null,null,null,null,null,null,null,null,null,null,null,null,null,null,null,null,null,null,null,null,0,null,0,null,null,0,null,null,0,null,null,0,null,0]
[null,null,null,null,null,null,null,null,null,null,null,null,null,null,null,null,null,null,null,null,null,null,null,null,null,null,null,null,null,null,null,null,null,null,null,null,null,null,null,null,null,null,null,null,null,null,null,null,null,0,null,0,null,null,0,null,null,0,null,null,0,null,0]
[null,null,null,null,null,null,null,null,null,null,null,null,null,null,null,null,null,null,null,null,null,null,null,null,null,null,null,null,null,null,null,null,null,null,null,null,null,null,null,null,null,null,null,null,null,null,null,null,null,0,null,0,null,null,0,null,null,0,null,null,0,null,0]
[null,null,null,null,null,null,null,null,null,null,null,null,null,null,null,null,null,null,null,null,null,null,null,null,null,null,null,null,null,null,null,null,null,null,null,null,null,null,null,null,null,null,null,null,null,null,null,null,null,0,null,0,null,null,0,null,null,0,null,null,0,null,0]
[null,null,null,null,null,null,null,null,null,null,null,null,null,null,null,null,null,null,null,null,null,null,null,null,null,null,null,null,null,null,null,null,null,null,null,null,null,null,null,null,null,null,null,null,null,null,null,null,null,0,null,0,null,null,0,null,null,0,null,null,0,null,0]
[null,null,null,null,null,null,null,null,null,null,null,null,null,null,null,null,null,null,null,null,null,null,null,null,null,null,null,null,null,null,null,null,null,null,null,null,null,null,null,null,null,null,null,null,null,null,null,null,null,0,null,0,null,null,0,null,null,0,null,null,0,null,0]
[null,null,null,null,null,null,null,null,null,null,null,null,null,null,null,null,null,null,null,null,null,null,null,null,null,null,null,null,null,null,null,null,null,null,null,null,null,null,null,null,null,null,null,null,null,null,null,null,null,0,null,0,null,null,0,null,null,0,null,null,0,null,0]
[null,null,null,null,null,null,null,null,null,null,null,null,null,null,null,null,null,null,null,null,null,null,null,null,null,null,null,null,null,null,null,null,null,null,null,null,null,null,null,null,null,null,null,null,null,null,null,null,null,0,null,0,null,null,0,null,null,0,null,null,0,null,0]
[null,null,null,null,null,null,null,null,null,null,null,null,null,null,null,null,null,null,null,null,null,null,null,null,null,null,null,null,null,null,null,null,null,null,null,null,null,null,null,null,null,null,null,null,null,null,null,null,null,0,null,0,null,null,0,null,null,0,null,null,0,null,0]
[null,null,null,null,null,null,null,null,null,null,null,null,null,null,null,null,null,null,null,null,null,null,null,null,null,null,null,null,null,null,null,null,null,null,null,null,null,null,null,null,null,null,null,null,null,null,null,null,null,0,null,0,null,null,0,null,null,0,null,null,0,null,0]
[null,null,null,null,null,null,null,null,null,null,null,null,null,null,null,null,null,null,null,null,null,null,null,null,null,null,null,null,null,null,null,null,null,null,null,null,null,null,null,null,null,null,null,null,null,null,null,null,null,0,null,0,null,null,0,null,null,0,null,null,0,null,0]
[null,null,null,null,null,null,null,null,null,null,null,null,null,null,null,null,null,null,null,null,null,null,null,null,null,null,null,null,null,null,null,null,null,null,null,null,null,null,null,null,null,null,null,null,null,null,null,null,null,0,null,0,null,null,0,null,null,0,null,null,0,null,0]
[null,null,null,null,null,null,null,null,null,null,null,null,null,null,null,null,null,null,null,null,null,null,null,null,null,null,null,null,null,null,null,null,null,null,null,null,null,null,null,null,null,null,null,null,null,null,null,null,null,0,null,0,null,null,0,null,null,0,null,null,0,null,0]
[null,null,null,null,null,null,null,null,null,null,null,null,null,null,null,null,null,null,null,null,null,null,null,null,null,null,null,null,null,null,null,null,null,null,null,null,null,null,null,null,null,null,null,null,null,null,null,null,null,0,null,0,null,null,0,null,null,0,null,null,0,null,0]
[null,null,null,null,null,null,null,null,null,null,null,null,null,null,null,null,null,null,null,null,null,null,null,null,null,null,null,null,null,null,null,null,null,null,null,null,null,null,null,null,null,null,null,null,null,null,null,null,null,0,null,0,null,null,0,null,null,0,null,null,0,null,0]
[null,null,null,null,null,null,null,null,null,null,null,null,null,null,null,null,null,null,null,null,null,null,null,null,null,null,null,null,null,null,null,null,null,null,null,null,null,null,null,null,null,null,null,null,null,null,null,null,null,0,null,0,null,null,0,null,null,0,null,null,0,null,0]
[null,null,null,null,null,null,null,null,null,null,null,null,null,null,null,null,null,null,null,null,null,null,null,null,null,null,null,null,null,null,null,null,null,null,null,null,null,null,null,null,null,null,null,null,null,null,null,null,null,0,null,0,null,null,0,null,null,0,null,null,0,null,0]
[null,null,null,null,null,null,null,null,null,null,null,null,null,null,null,null,null,null,null,null,null,null,null,null,null,null,null,null,null,null,null,null,null,null,null,null,null,null,null,null,null,null,null,null,null,null,null,null,null,0,null,0,null,null,0,null,null,0,null,null,0,null,0]
[null,null,null,null,null,null,null,null,null,null,null,null,null,null,null,null,null,null,null,null,null,null,null,null,null,null,null,null,null,null,null,null,null,null,null,null,null,null,null,null,null,null,null,null,null,null,null,null,null,0,null,0,null,null,0,null,null,0,null,null,0,null,0]
[null,null,null,null,null,null,null,null,null,null,null,null,null,null,null,null,null,null,null,null,null,null,null,null,null,null,null,null,null,null,null,null,null,null,null,null,null,null,null,null,null,null,null,null,null,null,null,null,null,0,null,0,null,null,0,null,null,0,null,null,0,null,0]
[null,null,null,null,null,null,null,null,null,null,null,null,null,null,null,null,null,null,null,null,null,null,null,null,null,null,null,null,null,null,null,null,null,null,null,null,null,null,null,null,null,null,null,null,null,null,null,null,null,0,null,0,null,null,0,null,null,0,null,null,0,null,0]
[null,null,null,null,null,null,null,null,null,null,null,null,null,null,null,null,null,null,null,null,null,null,null,null,null,null,null,null,null,null,null,null,null,null,null,null,null,null,null,null,null,null,null,null,null,null,null,null,null,0,null,0,null,null,0,null,null,0,null,null,0,null,0]
[null,null,null,null,null,null,null,null,null,null,null,null,null,null,null,null,null,null,null,null,null,null,null,null,null,null,null,null,null,null,null,null,null,null,null,null,null,null,null,null,null,null,null,null,null,null,null,null,null,0,null,0,null,null,0,null,null,0,null,null,0,null,0]
[null,null,null,null,null,null,null,null,null,null,null,null,null,null,null,null,null,null,null,null,null,null,null,null,null,null,null,null,null,null,null,null,null,null,null,null,null,null,null,null,null,null,null,null,null,null,null,null,null,{"$f":"(AV72*AW72)/43560","v":0},null,{"$f":"AX72*5","v":0},null,null,{"$f":"BB72*AZ72","v":0},null,null,{"$f":"BE72*AZ72","v":0},null,null,{"$f":"BH72*AZ72","v":0},null,{"$f":"BH72+BE72+BB72","v":0}]
[null,null,null,null,null,null,null,null,null,null,null,null,null,null,null,null,null,null,null,null,null,null,null,null,null,null,null,null,null,null,null,null,null,null,null,null,null,null,null,null,null,null,null,null,null,null,null,null,null,0,null,0,null,null,0,null,null,0,null,null,0,null,0]
[null,null,null,null,null,null,null,null,null,null,null,null,null,null,null,null,null,null,null,null,null,null,null,null,null,null,null,null,null,null,null,null,null,null,null,null,null,null,null,null,null,null,null,null,null,null,null,null,null,0,null,0,null,null,0,null,null,0,null,null,0,null,0]
[null,null,null,null,null,null,null,null,null,null,null,null,null,null,null,null,null,null,null,null,null,null,null,null,null,null,null,null,null,null,null,null,null,null,null,null,null,null,null,null,null,null,null,null,null,null,null,null,null,0,null,0,null,null,0,null,null,0,null,null,0,null,0]
[null,null,null,null,null,null,null,null,null,null,null,null,null,null,null,null,null,null,null,null,null,null,null,null,null,null,null,null,null,null,null,null,null,null,null,null,null,null,null,null,null,null,null,null,null,null,null,null,null,0,null,0,null,null,0,null,null,0,null,null,0,null,0]
[null,null,null,null,null,null,null,null,null,null,null,null,null,null,null,null,null,null,null,null,null,null,null,null,null,null,null,null,null,null,null,null,null,null,null,null,null,null,null,null,null,null,null,null,null,null,null,null,null,0,null,0,null,null,0,null,null,0,null,null,0,null,0]
[null,null,null,null,null,null,null,null,null,null,null,null,null,null,null,null,null,null,null,null,null,null,null,null,null,null,null,null,null,null,null,null,null,null,null,null,null,null,null,null,null,null,null,null,null,null,null,null,null,0,null,0,null,null,0,null,null,0,null,null,0,null,0]
[null,null,null,null,null,null,null,null,null,null,null,null,null,null,null,null,null,null,null,null,null,null,null,null,null,null,null,null,null,null,null,null,null,null,null,null,null,null,null,null,null,null,null,null,null,null,null,null,null,0,null,0,null,null,0,null,null,0,null,null,0,null,0]
[null,null,null,null,null,null,null,null,null,null,null,null,null,null,null,null,null,null,null,null,null,null,null,null,null,null,null,null,null,null,null,null,null,null,null,null,null,null,null,null,null,null,null,null,null,null,null,null,null,0,null,0,null,null,0,null,null,0,null,null,0,null,0]
[null,null,null,null,null,null,null,null,null,null,null,null,null,null,null,null,null,null,null,null,null,null,null,null,null,null,null,null,null,null,null,null,null,null,null,null,null,null,null,null,null,null,null,null,null,null,null,null,null,0,null,0,null,null,0,null,null,0,null,null,0,null,0]
[null,null,null,null,null,null,null,null,null,null,null,null,null,null,null,null,null,null,null,null,null,null,null,null,null,null,null,null,null,null,null,null,null,null,null,null,null,null,null,null,null,null,null,null,null,null,null,null,null,0,null,0,null,null,0,null,null,0,null,null,0,null,0]
[null,null,null,null,null,null,null,null,null,null,null,null,null,null,null,null,null,null,null,null,null,null,null,null,null,null,null,null,null,null,null,null,null,null,null,null,null,null,null,null,null,null,null,null,null,null,null,null,null,0,null,0,null,null,0,null,null,0,null,null,0,null,0]
[null,null,null,null,null,null,null,null,null,null,null,null,null,null,null,null,null,null,null,null,null,null,null,null,null,null,null,null,null,null,null,null,null,null,null,null,null,null,null,null,null,null,null,null,null,null,null,null,null,0,null,0,null,null,0,null,null,0,null,null,0,null,0]
[null,null,null,null,null,null,null,null,null,null,null,null,null,null,null,null,null,null,null,null,null,null,null,null,null,null,null,null,null,null,null,null,null,null,null,null,null,null,null,null,null,null,null,null,null,null,null,null,null,0,null,0,null,null,0,null,null,0,null,null,0,null,0]
[null,null,null,null,null,null,null,null,null,null,null,null,null,null,null,null,null,null,null,null,null,null,null,null,null,null,null,null,null,null,null,null,null,null,null,null,null,null,null,null,null,null,null,null,null,null,null,null,null,0,null,0,null,null,0,null,null,0,null,null,0,null,0]
[null,null,null,null,null,null,null,null,null,null,null,null,null,null,null,null,null,null,null,null,null,null,null,null,null,null,null,null,null,null,null,null,null,null,null,null,null,null,null,null,null,null,null,null,null,null,null,null,null,0,null,0,null,null,0,null,null,0,null,null,0,null,0]
[null,null,null,null,null,null,null,null,null,null,null,null,null,null,null,null,null,null,null,null,null,null,null,null,null,null,null,null,null,null,null,null,null,null,null,null,null,null,null,null,null,null,null,null,null,null,null,null,null,0,null,0,null,null,0,null,null,0,null,null,0,null,0]
[null,null,null,null,null,null,null,null,null,null,null,null,null,null,null,null,null,null,null,null,null,null,null,null,null,null,null,null,null,null,null,null,null,null,null,null,null,null,null,null,null,null,null,null,null,null,null,null,null,0,null,0,null,null,0,null,null,0,null,null,0,null,0]
[null,null,null,null,null,null,null,null,null,null,null,null,null,null,null,null,null,null,null,null,null,null,null,null,null,null,null,null,null,null,null,null,null,null,null,null,null,null,null,null,null,null,null,null,null,null,null,null,null,0,null,0,null,null,0,null,null,0,null,null,0,null,0]
[null,null,null,null,null,null,null,null,null,null,null,null,null,null,null,null,null,null,null,null,null,null,null,null,null,null,null,null,null,null,null,null,null,null,null,null,null,null,null,null,null,null,null,null,null,null,null,null,null,0,null,0,null,null,0,null,null,0,null,null,0,null,0]
[null,null,null,null,null,null,null,null,null,null,null,null,null,null,null,null,null,null,null,null,null,null,null,null,null,null,null,null,null,null,null,null,null,null,null,null,null,null,null,null,null,null,null,null,null,null,null,null,null,0,null,0,null,null,0,null,null,0,null,null,0,null,0]
[null,null,null,null,null,null,null,null,null,null,null,null,null,null,null,null,null,null,null,null,null,null,null,null,null,null,null,null,null,null,null,null,null,null,null,null,null,null,null,null,null,null,null,null,null,null,null,null,null,0,null,0,null,null,0,null,null,0,null,null,0,null,0]
[null,null,null,null,null,null,null,null,null,null,null,null,null,null,null,null,null,null,null,null,null,null,null,null,null,null,null,null,null,null,null,null,null,null,null,null,null,null,null,null,null,null,null,null,null,null,null,null,null,0,null,0,null,null,0,null,null,0,null,null,0,null,0]
[null,null,null,null,null,null,null,null,null,null,null,null,null,null,null,null,null,null,null,null,null,null,null,null,null,null,null,null,null,null,null,null,null,null,null,null,null,null,null,null,null,null,null,null,null,null,null,null,null,0,null,0,null,null,0,null,null,0,null,null,0,null,0]
[null,null,null,null,null,null,null,null,null,null,null,null,null,null,null,null,null,null,null,null,null,null,null,null,null,null,null,null,null,null,null,null,null,null,null,null,null,null,null,null,null,null,null,null,null,null,null,null,null,0,null,0,null,null,0,null,null,0,null,null,0,null,0]
[null,null,null,null,null,null,null,null,null,null,null,null,null,null,null,null,null,null,null,null,null,null,null,null,null,null,null,null,null,null,null,null,null,null,null,null,null,null,null,null,null,null,null,null,null,null,null,null,null,0,null,0,null,null,0,null,null,0,null,null,0,null,0]
[null,null,null,null,null,null,null,null,null,null,null,null,null,null,null,null,null,null,null,null,null,null,null,null,null,null,null,null,null,null,null,null,null,null,null,null,null,null,null,null,null,null,null,null,null,null,null,null,null,0,null,0,null,null,0,null,null,0,null,null,0,null,0]
[null,null,null,null,null,null,null,null,null,null,null,null,null,null,null,null,null,null,null,null,null,null,null,null,null,null,null,null,null,null,null,null,null,null,null,null,null,null,null,null,null,null,null,null,null,null,null,null,null,0,null,0,null,null,0,null,null,0,null,null,0,null,0]
["end","end","end","end","end","Wetland Restoration - Implementation","end","end","end","end",null,"end",null,"end","end","end","end","end","end","end","end","end","end","end","end","end","end","end","end","end","end","end","end","end","end","end","end","end","end","end","end",null,"end","end","end","end","end","end","end","end","end","end","end","end","end","end","end","end","end","end","end","end","end","end","end","end","end","end","end","end","end","end","end","end","end","end","end","end","end","end","end","end","end","end","end","end","end","end","end","end","end","end","end","end","end","end",null,"end","end","end",null,null,"end","end","end","end","end","end","end","end","end","end",null,"end","end","end","end","end","end","end","end","end","end","end",null,"end","end","end","end","end","end","end","end","end","end","end"]

{"sheet":"Stormwater Instructions","index":2,"n_rows":7,"n_cols":1,"rows_kept":7,"cut":false,"hidden":false,"merged":[[6,0,6,11],[5,0,5,11],[0,0,1,11],[2,0,2,11],[4,0,4,11],[3,0,3,11]]}
["Stormwater Practice Instructions"]
[]
["Stormwater treatment practices treat polluted stormwater runoff and control flow from developed lands, such as parking lots, sidewalks, and rooftops. "]
["Phosphorus reductions can be estimated for the following stormwater and road practices in this form: extended dry dentention basin, grass conveyance swale, gravel wetland, outfall/gully stabilization, hydrodynamic separators, infiltration trench, porous pavement with impermeable underline/underdrain, porous pavement with infiltration, rain garden/biorentention with underdrain, rain garden/biorentention without underdrain, sand filter with underdrain, subsurface infiltration, surface infiltration, and wet pond. "]
["Please enter the stormwater BMP specifications for each BMP funded by a project. The data required to calculate pollutant reduction achieved by stormwater BMPs varies by practice type. Cells that are filled black indicate information that is not required based on a previous selection. Some projects may fund multiple BMPs in close proximity (e.g., multiple rain gardens installed around the perimeter of a parking area). If possible, record funding information, performance measures, and BMP specificatinos for each individual practice in a separate row. Use the \"Additional BMP\" designation in the Row Type column to indicate these instances."]
["Outlet/gully stabilization treats erosion and sediment transport resulting from high energy stormwater discharges from a pipe or other collection system. Outlet/gully stabilization projects restore eroding channels to a state where sediment loss is minimized or eliminated through use of rock rock aprons, plunge pools, riprap, step pools, check dams, armored turnouts, outlet headwalls, seeding/mulching, and vegetated or structural bank and slope stabilization techniques."]
["Please note, outlet/gully stabilization in the stormwater practice information section is intended to account for stabilization practices in intermittent or ephemeral streams adjacent to developed lands. Stabilization of gully erosion adjacent to or draining to perennial streams should be accounted for as a floodplain/stream restoration practice. "]

{"sheet":"Buffer Instructions","index":3,"n_rows":9,"n_cols":1,"rows_kept":9,"cut":false,"hidden":false,"merged":[[8,0,8,11],[0,0,1,11],[2,0,2,11],[4,0,4,11],[5,0,5,11],[7,0,7,11],[6,0,6,11],[3,0,3,11]]}
["Riparian Buffer Instructions"]
[]
["Riparian buffers provide a variety of physical, chemical, and biological services that enhance both terrestrial and aquatic ecosystems. For CWIP's TMDL tracking and accounting, buffers are currently credited with 2 mechanisms: land use conversion and overland flow treatment. This section of the tool is meant to capture data for projects that only implement buffer planting. In some cases, floodplain and stream restoration projects may implement a suite of practices including planting of the streambank or floodplain, in which case the project data should be recorded in the floodplain and stream BMP section and is eligible for phosphorus reduction credit based on calculations completed in the Functioning Floodplains Initiative web application."]
["For buffer enhancement projects, there is no need to re-enter any of the Buffer BMP Reporting information because the phosphorus reductions are accounted for in the original planting. You must enter the WPD ID of the orignal planting where enhancement occurred, and the Project Type should be \"Riparian Buffer Planting\"."]
["To receive phosphorus credit for the land use conversion of newly planted buffers, CWIP needs to know the land use of the planted area prior to the buffer planting. Land uses have been simplified for reporting: Developed Pervious, Developed Impervious, Cropland, or Pasture. Cropland represents areas of corn or hay, while Pasture refers to agricultural areas of fertilized grasses with livestock. Developed Pervious refers to areas of lawn or turfgrass (no livestock), while Developed Impervious refers to areas of hard surfaces (e.g., driveways, parking lots). Note that Developed Impervious draining to a collection system (e.g., stormwater catch basins) is not credited in the buffer drainage area because the overland flow does not drain to buffer."]
["To receive phosphorus credit for overland flow treatment of newly planted buffers, CWIP needs to know the land uses within the drainage area of the buffer. The drainage area is defined as 5 times the buffer area. For example, if a planted buffer is 1.15 acres then 5.75 acres of upslope area is considered the drainage area for the buffer. The drainage area should be calculated as 5 times the buffer width times the buffer length (see example at right)."]
["Grantees can measure and summarize drainage area land uses using Google Maps. To estimate land uses using satellite imagery, select the Satellite layer and enter your buffer coordinates to zoom into the planting site. Measure the drainage area as buffer length x 5 times the buffer width and calculate the percent of the drainage area occupied by the following land use types: Developed Pervious (grass/shrubs, bare soil), Developed Impervious (buildings, roads, other paved, railroads), Cropland (crops, hay), Pasture (hayfield with manure application, livestock grazing area), or Forest. Up to three land use categories can be reported for a single buffer drainage area."]
["Alternatively, grantees can use measure and summarize the drainage area land uses using the VCGI Map Viewer. To measure the drainage area, use the \"Measure\" toolboar at the top of the Map Viewer (see example below). Under the Land Cover/Use layer on the left of the Map Viewer, select \"Agricultural Land Cover (2016)\" and \"Land Cover 2016\" (see layer legend below). The land use color symbology for these two layers is shown in the black legends below. For reporting to DEC, land uses in the drainage area should be classified as Developed Pervious (grass/shrubs, bare soil), Developed Impervious (buildings, roads, other paved, railroads), Cropland (crops, hay), Pasture(hayfield with manure application, livestock grazing area) or Forest. Up to three categories can be reported for a single buffer drainage area."]
["https://maps.vermont.gov/vcgi/html5viewer/?viewer=vtmapviewer"]

{"sheet":"Lake Shoreland Instructions","index":4,"n_rows":5,"n_cols":1,"rows_kept":5,"cut":false,"hidden":false,"merged":[[1,0,1,11],[2,0,2,11],[3,0,3,11],[4,0,4,11],[0,0,0,11]]}
["Lake Shoreland Stabilization Instructions "]
["Lake shoreland practices may include bioengineered shoreline stabilization, native revegetation, or tree canopy expansion. Stormwater BMPs implemented within 250ft of a lakeshore may also be considered lake shoreland practices but should use the stormwater BMP section of this reporting tool. Bioengineered shoreline stabilization practices combine native plants with natural, biodegradable materials to stabilize slopes, prevent erosion, and encourage healthy living shorelines. Common bioengineering practices in Vermont include encapsulated soil lifts, live crib walls, regraded slopes, fiber coir rolls, stone toe, and live staking. \n\nNative revegetation practices result in conversion of developed pervious (e.g., lawns) land uses to native vegetation by the implementation of “no mow” zones or native shrub plantings. Over time, natural succession will allow the area to return to vegetative cover consisting of a mix of trees, shrubs, saplings, and groundcover. \n\nTree canopy expansion practice involves tree planting on developed land (pervious or impervious) that results in an increase in tree canopy but is not intended to result in forest-like conditions. Trees do not need to be planted contiguously and there is no minimum density requirement. The trees cannot be part of a forested riparian buffer or structural stormwater BMP, and the replacement of existing trees is not eligible for credit."]
["To estimate phosphorus reductions for shoreline stabilization practices, CWIP needs to know the length, average height, and average recession rate of the shoreline stabilization project. The bank height of the restoration project pre-restoration should be measured at three equidistant places along the length of the project, and the average of the three measurements should be reported. The shoreline recession rate (inches per year) should be estimated as the average recession rate over the past 10 years. To estimate the rate, consult with the landowner about how much the shoreline has receded in the past 10 years. If possible, review landowner photos or aerial imagery of shoreline recession over the past 10 years to estimate the rate. Three general categories can be used to estimate the shoreline recession rate: severe erosion (6 inches per year), moderate erosion (4 inches per year), and low erosion (2 inches per year). If the landowner or engineer have direct measurements of shoreline recession rates, those more accurate data should be reported."]
["To estimate phosphorus reductions for native revegetation of lake shoreland, CWIP needs to know the TMDL drainage area of the project and the acres converted to native revegetation. "]
["To estimate phosphorus reductions for tree canopy expansion, CWIP needs to know the TMDL drainage area, number of trees planted and land use of the planting area (developed pervious or developed impervious). "]

{"sheet":"Floodplain Stream Instructions","index":5,"n_rows":8,"n_cols":1,"rows_kept":8,"cut":false,"hidden":false,"merged":[[0,0,1,11],[2,0,2,11],[3,0,3,11],[6,0,6,11],[7,0,7,11],[5,0,5,11],[4,0,4,11]]}
["Floodplain and Stream Restoration Instructions "]
[]
["Floodplain and stream restoration projects increase floodplain connectivity, natural stream function, and stream evolution to equilibrium state. "]
["The Functioning Floodplain Initiative (FFI) is a collaboration between the Vermont Department of Environmental Conservation and many partners to develop methods and tools to idenify high priority projects to restore and protect stream, riparian wetland, and floodplain functions. Part of the work of the FFI is development of a web application that calculates the estimated phosphorus reduction achieved through implemnetation of stream and floodplain restoration projects. CWIP will use the estimated phosphorus reductions calculated in the FFI tool for crediting and reporting requirements. A preview of anticipated data fields is provided in the Floodplain and Stream section of the Project Data tab, however phosphorus reduction credit attributed to implementation phase floodplain and stream restoration projects must be calculated through the FFI web application, once available. \n\nRequired data may differ by project type and practice type availability. Projects may include floodplain/river corridor connectivity, stream connectivity, or both. Practice types available for stream restoration projects are determined in the FFI app by site location (ex: cannot complete a dam removal on a stream segment without a dam present). Please consult with the DEC technical staff assigned to the area in which the project is located to confirm the project data required to calculate phosphorus reduction. Contact information can be accessed via the Water Quality Project Screening Tool: "]
["https://anrweb.vt.gov/DEC/cleanWaterDashboard/ScreeningTool.aspx"]
["All data fields in this tool are intended to capture restoration project values. For example, acreage values should be acres changed as a result of project implementation, not total post-restoration condition."]
["You can follow the link below to access the FFI tool, enter the details of your implmeneted project, and calculate the estimated phosphorus reduction achieved: "]
["link coming soon - FFI tool is anticipated to launch in late 2022 for the Lake Champlain Basin. Development of the FFI tool for the Memphremagog Basin is expected in the future. Until FFI is available, complete the data fields in this tool in consultation with DEC Technical Staff."]

{"sheet":"Road Instructions","index":6,"n_rows":4,"n_cols":1,"rows_kept":4,"cut":false,"hidden":false,"merged":[[0,0,0,11],[1,0,1,11],[2,0,2,11],[3,0,3,11]]}
["Road Erosion Control Instructions"]
["Road erosion remediation projects may include installation of a suite of practices to correct road-related erosion problems for paved and unpaved roads and road drainage culverts. Non-regulatory road erosion control projects will be assessed to the same standard as MRGP roads for the purposes of assigning a phosphorus reduction efficiency. "]
["A Road Erosion Inventory (REI) assessment is required pre- and post- restoration to characterize the change in site compliance with MRGP standards and assign a phosphorus reduction efficiency. In order to be eligible for clean water funding, the post-restoration condition of a road erosion control project site must be equivalent to the 'Fully Meets' compliance standard. "]
["Note: erosion control work is only eligible for phosphorus reduction credit if completed on hydrologically connected road segments. A hydologically connected road segment must meet at least one of the following criteria: \n- Road segment is wihtin 100 feet of a perennial or intermittnent stream, lake, pond, wetland, or defined channel\n- Road segment bisects water or a defined channel\n- Road segment is uphill from, and drains to, a road segment that bisects water or a defined channel"]

{"sheet":"Forestry Instructions","index":7,"n_rows":5,"n_cols":1,"rows_kept":5,"cut":false,"hidden":false,"merged":[[0,0,0,11],[1,0,1,11],[2,0,2,11],[3,0,3,11],[4,0,4,11]]}
["Forest Road Erosion Control Instructions"]
["Forest road and trail erosion control is the implementation of forest logging road, trail, and/or stream crossing best management practices (BMPs) to address erosion to control nutrient and sediment pollution from forested lands or legacy erosion from historic forestry operations. BMPs are consistent with Acceptable Management Practices (AMPs) for Maintaining Water Quality on Logging Jobs in Vermont standards."]
["A Forest Road Erosion Inventory (REI) survey, modeled on the Municipal Roads General Permit REI assessment, has been developed and is being tested on Agency owned forestlands. The methodology is anticipated to be expanded to non-Agency owned forestlands to account for pollution reductions associated with addressing sources and causes of erosion resulting from forestry practices. "]
["A Forest REI assessment is required pre- and post- restoration to characterize the change in site compliance with AMP standards and assign a phosphorus reduction efficiency. To estimate the phosphorus load attributable to the site, required data includes the type of forest road, location, legnth of the segment restored, and road slope. If known, it is suggested to report the predominant soil class type at the site. "]
["Note: erosion control work is only eligible for phosphorus reduction credit if completed on hydrologically connected road segments. A hydologically connected road segment must meet at least one of the following criteria: \n- Road segment is wihtin 100 feet of a perennial or intermittnent stream, lake, pond, wetland, or defined channel\n- Road segment bisects water or a defined channel\n- Road segment is uphill from, and drains to, a road segment that bisects water or a defined channel"]

{"sheet":"Agriculture Instructions","index":8,"n_rows":4,"n_cols":1,"rows_kept":4,"cut":false,"hidden":false,"merged":[[0,0,0,11],[1,0,1,11],[2,0,2,11],[3,0,3,11]]}
["Agricultural (non-RAP) Instructions"]
["Agricultural pollution prevention practices on non jurisdictional farms (farms not subject to Required Agricultural Practices standards) may include various production area/barnyard management practices, livestock exclusion, crop conversion, and grassed waterways. "]
["To calcualte phosphorus credit for agricultural practices, CWIP needs to know the type of practice implemented, practice acreage, HUC12 watershed in which the practice is located, the land use of the practice area prior to implementation, and if available, the hydologic soil group and slope of the field on which the practice was implemented. Importantly, practices must be associated with a field ID number that will indicate where more than one practice is treating the same practice area (stacked practices)."]
["Agricultural practices are subject to specific funding eligibility requirements, please contact DEC and/or AAFM prior to pursuing a project to confirm eligibility. "]

{"sheet":"Dropdowns","index":9,"n_rows":275,"n_cols":33,"rows_kept":275,"cut":false,"hidden":true,"merged":[]}
["Row Type","Project Type ","Y/N","BMP Type","Infiltration Rate","Drainage area","Performance Measures","Town/County/Region","Basins","Land Use","MS4","Land Uses","Road project types","Erosion rates","Road types","Road Surfaces","Forest Road Types","Road Type","Compliance Score","Soil Type","Ag practice types","Field HSG Type","Field Average Slope","Ag land use type","HUC12","HUC12",null,"Floodplain/Stream Restoration Project","Connectivity Score","Stream Projects","Lake Shoreland Practices","Shoreline Recession","gully remediation"]
["General Project","Agricultural Pollution Prevention - Project Identification","Yes","Extended Dry Detension Basin","0.17 (HSG C, Sandy Clay Loam)","Mettawee River","Acres assessed/covered by plan","Statewide","Statewide ","Developed Pervious","N/A","Developed Pervious","Linear practices","Severe: 6 inches per year","Private road","Class 4","Truck Road","Paved - Class 1-3","Does Not Meet","Loam","Barnyard/Production Area Management","A","Low (<5%)","Continuous corn on non-clayey soils",{"$f":"Z2&\" - \"&AA2","v":"010801010203 - Favreau Brook-Connecticut River"},"010801010203","Favreau Brook-Connecticut River","Restore Channel Slope","Low ","Backwater Culvert with Weir or Other Approach","Bioengineered Lake Shoreline Stabilization",null,"Fully restored"]
["Additional BMP","Agricultural Pollution Prevention - Engineering Design","No","Grass Conveyance Swale","0.27 (HSG C, Silt Loam)","Poultney River","Acres of agricultural land treated","Connecticut River Basin","Lake Memphremagog Basin","Developed Impervious ","City of Burlington","Developed Impervious","Outlet stabilization","Moderate: 4 inches per year","Municipal road","Gravel","Skid Trail","Unpaved - Class 1-3","Partially Meets","Sandy Loam","Livestock Exclusion","B","Medium (5%-10%)","Continuous hay",{"$f":"Z3&\" - \"&AA3","v":"010801010303 - Halls Stream"},"010801010303","Halls Stream","Plant Floodplain","Medium","Place Baffles in Culvert","Native Revegetation",null,"Partially restored"]
[null,"Agricultural Pollution Prevention - Implementation",null,"Gravel Wetland","0.52 (HSG B, Loam)","South Lake B Direct Drainage","Acres of agricultural land treated by filter strip buffer","Hudson River Basin","Lake Champlain Basin ",null,"Burlington International Airport","Cropland","Class 4 gully erosion remediation ","Low: 2 inches per year",null,"Paved with open ditches",null,"Class 4","Fully Meets","Silt Loam","Forage and Biomass, Corn to Hay Conversion","C","High (>10%)","Corn","010801010304 - Leach Creek","010801010304","Leach Creek","Plant River Corridor","High","Remove/Convert Large Peaking Hydro Dam","Tree Canopy Expansion"]
[null,"Road Erosion Inventory - Project Identification",null,"Hydrodynamic (Swirl) Separator ","1.02 (HSG B, Sandy Loam)","South Lake A Direct Drainage","Acres of agricultural land treated by grassed waterways","Lake Champlain Basin","Hudson River Basin",null,"Town of Colchester","Pasture",null,null,null,"Paved with catch basins",null,null,null,"Clay Loam","Grassed Waterway","D","N/A","Corn-hay rotation on clayey soils","010801010305 - Willard Stream-Connecticut River","010801010305","Willard Stream-Connecticut River","Reconnect Flood Chute",null,"Remove/Convert Medium Peaking Hydro Dam","Stormwater BMP"]
[null,"Road Project - Preliminary Engineering Design",null,"Infiltration Trench","2.41 (HSG A, Loamy Sand)","Port Henry Direct Drainage","Acres of existing impervious surface treated","Lake Memphremagog Basin","Connecticut River Basin",null,"Town of Essex","Forest",null,null,null,null,null,null,null,null,null,"N/A",null,"Corn-hay rotation on non-clayey soils","010801010404 - Clough Brook-Connecticut River","010801010404","Clough Brook-Connecticut River","NRCS Wetland Reserve",null,"Remove Large Flood Control Dam"]
[null,"Road Project - Final Engineering Design",null,"Porous Pavement with Impermeable Underline or Underdrain","8.27 (HSG A, Sand)","Lewis Creek","Acres of floodplain reconnected/restored","Addison County","1 - Batten Kill (VT01-04)",null,"Village of Essex Junction",null,null,null,null,null,null,null,null,null,null,null,null,"Cropland","010801010405 - Lyman Brook-Connecticut River","010801010405","Lyman Brook-Connecticut River","Restore Channel Roughness",null,"Remove Large Run of River Dam"]
[null,"Road Project - Implementation",null,"Porous Pavement with Infiltration",null,"Little Otter Creek","Acres of gully stabilized","Bennington County","1 - Batten Kill, Walloomsac, Hoosic ",null,"Town of Milton",null,null,null,null,null,null,null,null,null,null,null,null,"Farmstead","010801010501 - Headwaters Nulhegan River","010801010501","Headwaters Nulhegan River","Remove Minor Constraint",null,"Remove Medium Breached Dam"]
[null,"Stormwater/Road Equipment",null,"Rain Garden/Biorentention with Underdrain",null,"Otter Creek","Acres of impervious surface removed","Caledonia County","1 - Hoosic River (VT01-02)",null,"Town of Rutland",null,null,null,null,null,null,null,null,null,null,null,null,"Pasture","010801010502 - East Branch Nulhegan River","010801010502","East Branch Nulhegan River","Adopt River Corridor Bylaws",null,"Remove Medium Run of River Dam"]
[null,"Stormwater - Illicit Discharge Detection and Elimination (IDDE)",null,"Rain Garden/Biorentention without Underdrain",null,"Otter Creek Direct Drainage","Acres of lakeshore restored","Chittenden County","1 - North Branch Hoosic River (VT01-01)",null,"City of St. Albans",null,null,null,null,null,null,null,null,null,null,null,null,null,"010801010503 - Nulhegan River","010801010503","Nulhegan River","Create Flood Bench",null,"Remove Small Breached Dam"]
[null,"Stormwater Master Plan - Project Identification",null,"Sand Filter with Underdrain",null,"Main Lake Direct Drainage","Acres of livestock excluded","Essex County","1 - Roaring Branch (VT01-06)",null,"Town of St. Albans",null,null,null,null,null,null,null,null,null,null,null,null,null,"010801010601 - Paul Stream","010801010601","Paul Stream","Plant 50-ft Riparian Area",null,"Remove Small Intact Run of River Dam"]
[null,"Stormwater - Preliminary Engineering Design",null,"Subsurface Infiltration",null,"Winooski River","Acres of riparian buffer planted/restored","Franklin County","1 - Tributaries to the Batten Kill (VT01-05)",null,"Town of Shelburne",null,null,null,null,null,null,null,null,null,null,null,null,null,"010801010603 - Dennis Pond Brook-Connecticut River","010801010603","Dennis Pond Brook-Connecticut River","Raise Channel",null,"Replace Bridge (50%>WBkf>100%)"]
[null,"Stormwater - Final Engineering Design",null,"Surface Infiltration",null,"Laplatte River","Acres of riparian corridor conserved","Grand Isle County","1 - Walloomsac River (VT01-03)",null,"City of South Burlington",null,null,null,null,null,null,null,null,null,null,null,null,null,"010801010901 - Cutler Mill Brook","010801010901","Cutler Mill Brook","Remove Berm",null,"Replace Bridge (Wbkf>100%)"]
[null,"Operational Stormwater Permit Obtainment ",null,"Wet Pond",null,"Burlington Bay - CSO","Acres of river corridor and/or wetland scoped for easement","Lamoille County","1 - White Creek and Tributaries (VT01-07)",null,"University of Vermont",null,null,null,null,null,null,null,null,null,null,null,null,null,"010801010902 - Dean Brook-Connecticut River","010801010902","Dean Brook-Connecticut River","Restore Wetland",null,"Replace Bridge (Wbkf<50%), shallow channel (< 2%)"]
[null,"Stormwater - Implementation",null,null,null,"Burlington Bay Direct Drainage","Acres of wetland conserved","Orange County","2 - Castleton River (VT02-03)",null,"Town of Williston",null,null,null,null,null,null,null,null,null,null,null,null,null,"010801010903 - Mink Brook-Connecticut River","010801010903","Mink Brook-Connecticut River","Remove Major Constraint",null,"Replace Bridge (Wbkf<50%), steep channel (> 2%)"]
[null,"Road/Stormwater Gully - Design",null,null,null,"Cumberland Bay Direct Drainage","Acres of wetland restored","Orleans County","2 - Hubbardton River (VT02-02)",null,"City of Winooski",null,null,null,null,null,null,null,null,null,null,null,null,null,"010801020101 - Bean Brook","010801020101","Bean Brook","Implement River Corridor Easement",null,"Replace Culvert (50%>Wbkf>100%), shallow channel (< 2%)"]
[null,"Road/Stormwater Gully - Implementation",null,null,null,"Saranac River","Acres receiving enhanced survivorship treatment","Rutland County","2 - Mettawee River Watershed (VT02-05)",null,null,null,null,null,null,null,null,null,null,null,null,null,null,null,"010801020102 - East Branch Passumpsic River","010801020102","East Branch Passumpsic River","Lower Floodplain",null,"Replace Culvert (50%>Wbkf>100%), steep channel (> 2%)"]
[null,"Forest Road Erosion Inventory - Project Identification",null,null,null,"Lamoille River","Acres stabilized through use of hydroseeder/mulcher equipment per year","Washington County","2 - Poultney Mettawee Basin ",null,null,null,null,null,null,null,null,null,null,null,null,null,null,null,"010801020103 - Calendar Brook","010801020103","Calendar Brook",null,null,"Replace Culvert (No Wbkf Data), shallow channel (< 2%)"]
[null,"Forestry - Design",null,null,null,"Malletts Bay Direct Drainage","Cubic feet of gully erosion restored","Windham County","2 - Poultney River and Tributaries (VT02-01)",null,null,null,null,null,null,null,null,null,null,null,null,null,null,null,"010801020104 - West Branch Passumpsic River","010801020104","West Branch Passumpsic River",null,null,"Replace Culvert (No Wbkf Data), steep channel (> 2%)"]
[null,"Forestry - Implementation",null,null,null,"Northeast Arm Direct Drainage","Hours equipment in use per year","Windsor County","2 - Upper Poultney Watershed (VT02-04)",null,null,null,null,null,null,null,null,null,null,null,null,null,null,null,"010801020201 - Rogers Brook","010801020201","Rogers Brook",null,null,"Replace Culvert (Wbkf>100%)"]
[null,"Forestry - Equipment",null,null,null,"St. Albans Bay Direct Drainage","Linear feet of lakeshore restored","Addison","3 - Clarendon River (VT03-15)",null,null,null,null,null,null,null,null,null,null,null,null,null,null,null,"010801020202 - Headwaters Moose River","010801020202","Headwaters Moose River",null,null,"Replace Culvert (Wbkf<50%), shallow channel (< 2%)"]
[null,"Lake Wise Assessments - Project Identification",null,null,null,"Mississquoi Bay Direct Drainage","Linear feet of riparian corridor buffer planted/restored","Albany","3 - Cold River (VT03-16)",null,null,null,null,null,null,null,null,null,null,null,null,null,null,null,"010801020203 - Moose River","010801020203","Moose River",null,null,"Replace Culvert (Wbkf<50%), steep channel (> 2%)"]
[null,"Lake Watershed Action Planning (LWAP) - Project Identification",null,null,null,"Mississquoi River","Linear feet of riparian corridor conserved","Alburg","3 - Dead Creek (VT03-09)",null,null,null,null,null,null,null,null,null,null,null,null,null,null,null,"010801020301 - Millers Run","010801020301","Millers Run",null,null,"Stabilize Gully"]
[null,"Lake Shoreland - Preliminary Engineering Design",null,null,null,"Isle La Motte Direct Drainage","Linear feet of road drainage improved","Andover","3 - East Creek (Basin 3) (VT03-14)",null,null,null,null,null,null,null,null,null,null,null,null,null,null,null,"010801020302 - South Wheelock Branch-Passumpsic River","010801020302","South Wheelock Branch-Passumpsic River",null,null,"Stabilize Gully with Treatment of Stormwater"]
[null,"Lake Shoreland - Final Engineering Design",null,null,null,"Black River-headwaters to Seaver Branch","Linear feet of stream restored","Arlington","3 - Furnace Brook and Tributaries (VT03-13)",null,null,null,null,null,null,null,null,null,null,null,null,null,null,null,"010801020401 - Sleepers River","010801020401","Sleepers River",null,null,"Stabilize Headcut in Perrenial Stream"]
[null,"Lake Shoreland - Implementation",null,null,null,"Black River-Seaver Branch to Lords Creek","Linear miles assessed/covered by plan","Athens","3 - Lemon Fair River (VT03-10)",null,null,null,null,null,null,null,null,null,null,null,null,null,null,null,"010801020402 - Joes Brook","010801020402","Joes Brook"]
[null,"Stream Geomorphic Assessment Phase 1 - Project Identification",null,null,null,"Lords Creek","Number of barnyard and production area practices installed","Averill","3 - Lewis Creek (VT03-08)",null,null,null,null,null,null,null,null,null,null,null,null,null,null,null,"010801020403 - Water Andric-Passumpsic River","010801020403","Water Andric-Passumpsic River"]
[null,"Stream Geomorphic Assessment Phase 2 (River Corridor Plan) - Project Identification",null,null,null,"Black River-Lords Creek to mouth","Number of drainage structures installed/repaired","Avery's Gore","3 - Little Otter Creek (VT03-07)",null,null,null,null,null,null,null,null,null,null,null,null,null,null,null,"010801030201 - Miles Stream-Connecticut River","010801030201","Miles Stream-Connecticut River"]
[null,"Dam Removal - Project Identification",null,null,null,"Barton River-headwaters to Roaring Brook","Number of final (100%) designs completed","Bakersfield","3 - Lower Otter Creek (VT03-01)",null,null,null,null,null,null,null,null,null,null,null,null,null,null,null,"010801030202 - Moore Reservoir-Connecticut River","010801030202","Moore Reservoir-Connecticut River"]
[null,"Dam Removal - Preliminary Engineering Design",null,null,null,"Barton River-Roaring Branch to Willoughby River","Number of illicit/unauthorized discharges confirmed","Baltimore","3 - Mid-Mainstem Otter Creek (VT03-03)",null,null,null,null,null,null,null,null,null,null,null,null,null,null,null,"010801030203 - Comerford Station Dam-Connecticut River","010801030203","Comerford Station Dam-Connecticut River"]
[null,"Dam Removal - Final Engineering Design",null,null,null,"Willoughby River","Number of operational stormwater permits obtained","Barnard","3 - Middlebury River (VT03-12)",null,null,null,null,null,null,null,null,null,null,null,null,null,null,null,"010801030204 - Stevens River","010801030204","Stevens River"]
[null,"Dam Removal - Implementation",null,null,null,"Barton River-Willoughby River to mouth","Number of preliminary (30%) designs completed","Barnet","3 - Mill River (VT03-17)",null,null,null,null,null,null,null,null,null,null,null,null,null,null,null,"010801030205 - McIndoe Falls-Connecticut River","010801030205","McIndoe Falls-Connecticut River"]
[null,"Floodplain/Stream Restoration - Preliminary Engineering Design",null,null,null,"Clyde River-headwaters to Echo Lake stream","Number of projects explored for design and/or implementation","Barre City","3 - New Haven River (VT03-11)",null,null,null,null,null,null,null,null,null,null,null,null,null,null,null,"010801030206 - Manchester Brook-Connecticut River","010801030206","Manchester Brook-Connecticut River"]
[null,"Floodplain/Stream Restoration - Final Engineering Design",null,null,null,"Seymour and Echo Lakes","Number of projects identified","Barre Town","3 - Otter Creek Basin ",null,null,null,null,null,null,null,null,null,null,null,null,null,null,null,"010801030601 - Headwaters Wells River","010801030601","Headwaters Wells River"]
[null,"Floodplain/Stream Restoration - Implementation",null,null,null,"Clyde River-Echo Lake stream to mouth","Number of projects maintained to fully functioning","Barton","3 - Tribs to Mid Mainstem Otter Creek (VT03-04)",null,null,null,null,null,null,null,null,null,null,null,null,null,null,null,"010801030602 - Wells River","010801030602","Wells River"]
[null,"River Corridor Easement - Design",null,null,null,"Direct drainage-south end of Lake Memphremagog","Number of river corridor/floodplain encroachments removed or retrofitted","Belvidere","3 - Tributaries to Lower Otter Creek (VT03-02)",null,null,null,null,null,null,null,null,null,null,null,null,null,null,null,"010801030702 - Halls Brook","010801030702","Halls Brook"]
[null,"River Corridor Easement - Implementation",null,null,null,"Connecticut River Drainage","Number of stream crossings improved","Bennington","3 - Tributaries to Upper Otter Creek (VT03-06)",null,null,null,null,null,null,null,null,null,null,null,null,null,null,null,"010801030703 - Clark Brook-Connecticut River","010801030703","Clark Brook-Connecticut River"]
[null,"Riparian Buffer Planting",null,null,null,"Hudson River Drainage","Number of stream crossings improved as a result of skidder bridge use","Benson","3 - Upper Otter Creek (VT03-05)",null,null,null,null,null,null,null,null,null,null,null,null,null,null,null,"010801040101 - Tabor Branch","010801040101","Tabor Branch"]
[null,"Wetland Easement - Design",null,null,null,null,"Road miles swept through use of equipment per year","Berkshire","3 - Upper Otter Creek Watershed (VT03-18)",null,null,null,null,null,null,null,null,null,null,null,null,null,null,null,"010801040102 - Headwaters Waits River","010801040102","Headwaters Waits River"]
[null,"Wetland Easement - Implementation",null,null,null,null,"Stream miles assessed/covered by plan","Berlin","4 - East Creek (Basin 4) (VT04-03)",null,null,null,null,null,null,null,null,null,null,null,null,null,null,null,"010801040103 - South Branch Waits River","010801040103","South Branch Waits River"]
[null,"Wetland Restoration - Project Identification",null,null,null,null,"Stream miles reconnected for stream equilibrium/aquatic organism passage","Bethel","4 - Lower Lake Champlain Basin ",null,null,null,null,null,null,null,null,null,null,null,null,null,null,null,"010801040104 - Waits River","010801040104","Waits River"]
[null,"Wetland Restoration - Preliminary Engineering Design",null,null,null,null,null,"Bloomfield","4 - Middle Lower Champlain Tribs (VT04-02)",null,null,null,null,null,null,null,null,null,null,null,null,null,null,null,"010801040205 - Lake Morey-Connecticut River","010801040205","Lake Morey-Connecticut River"]
[null,"Wetland Restoration - Final Engineering Design",null,null,null,null,null,"Bolton","4 - Northern Lower Champlain Tribs (VT04-01)",null,null,null,null,null,null,null,null,null,null,null,null,null,null,null,"010801040301 - Middle Brook","010801040301","Middle Brook"]
[null,"Wetland Restoration - Implementation",null,null,null,null,null,"Bradford","4 - Southern Lower Champlain Tribs (VT04-04)",null,null,null,null,null,null,null,null,null,null,null,null,null,null,null,"010801040302 - Headwaters Ompompanoosuc River","010801040302","Headwaters Ompompanoosuc River"]
[null,"Project Development",null,null,null,null,null,"Braintree","5 - Alburg Drainage (VT05-03)",null,null,null,null,null,null,null,null,null,null,null,null,null,null,null,"010801040303 - West Branch Ompompanoosuc River","010801040303","West Branch Ompompanoosuc River"]
[null,"Block Grant",null,null,null,null,null,"Brandon","5 - Burlington Bay Direct Drainage (VT05-10)",null,null,null,null,null,null,null,null,null,null,null,null,null,null,null,"010801040304 - Ompompanoosuc River","010801040304","Ompompanoosuc River"]
[null,"Operations and Maintenance ",null,null,null,null,null,"Brattleboro","5 - Grand Isle Land Drainage (VT05-05)",null,null,null,null,null,null,null,null,null,null,null,null,null,null,null,"010801040402 - Bloody Brook-Connecticut River","010801040402","Bloody Brook-Connecticut River"]
[null,null,null,null,null,null,null,"Bridgewater","5 - Lake Carmi (VT05-02L01)",null,null,null,null,null,null,null,null,null,null,null,null,null,null,null,"010801050101 - Headwaters White River","010801050101","Headwaters White River"]
[null,null,null,null,null,null,null,"Bridport","5 - Lake Carmi Watershed ",null,null,null,null,null,null,null,null,null,null,null,null,null,null,null,"010801050102 - West Branch White River","010801050102","West Branch White River"]
[null,null,null,null,null,null,null,"Brighton","5 - Lake Iroquois (VT05-11L02)",null,null,null,null,null,null,null,null,null,null,null,null,null,null,null,"010801050103 - Breakneck Brook-White River","010801050103","Breakneck Brook-White River"]
[null,null,null,null,null,null,null,"Bristol","5 - Lower Northeast Arm Direct (VT05-08)",null,null,null,null,null,null,null,null,null,null,null,null,null,null,null,"010801050104 - Tweed River","010801050104","Tweed River"]
[null,null,null,null,null,null,null,"Brookfield","5 - Malletts Bay Drainage (VT05-09)",null,null,null,null,null,null,null,null,null,null,null,null,null,null,null,"010801050105 - Locust Creek","010801050105","Locust Creek"]
[null,null,null,null,null,null,null,"Brookline","5 - North Hero Land Drainage (VT05-04)",null,null,null,null,null,null,null,null,null,null,null,null,null,null,null,"010801050106 - Stony Brook-White River","010801050106","Stony Brook-White River"]
[null,null,null,null,null,null,null,"Brownington","5 - Pike River (VT05-02)",null,null,null,null,null,null,null,null,null,null,null,null,null,null,null,"010801050201 - Headwaters Third Branch White River","010801050201","Headwaters Third Branch White River"]
[null,null,null,null,null,null,null,"Brunswick","5 - Rock River (Basin 5) (VT05-01)",null,null,null,null,null,null,null,null,null,null,null,null,null,null,null,"010801050202 - Ayers Brook","010801050202","Ayers Brook"]
[null,null,null,null,null,null,null,"Buel's Gore","5 - Shelburne Bay Direct Drainage (VT05-11)",null,null,null,null,null,null,null,null,null,null,null,null,null,null,null,"010801050203 - Third Branch White River","010801050203","Third Branch White River"]
[null,null,null,null,null,null,null,"Burke","5 - Southern Main Lake Direct (VT05-12)",null,null,null,null,null,null,null,null,null,null,null,null,null,null,null,"010801050301 - Headwaters Second Branch White River","010801050301","Headwaters Second Branch White River"]
[null,null,null,null,null,null,null,"Burlington","5 - St. Albans Bay Drainage (VT05-07)",null,null,null,null,null,null,null,null,null,null,null,null,null,null,null,"010801050302 - Second Branch White River","010801050302","Second Branch White River"]
[null,null,null,null,null,null,null,"Cabot","5 - Upper Lake Champlain Basin ",null,null,null,null,null,null,null,null,null,null,null,null,null,null,null,"010801050401 - Headwaters First Branch White River","010801050401","Headwaters First Branch White River"]
[null,null,null,null,null,null,null,"Calais","5 - Upper Northeast Arm Direct (VT05-06)",null,null,null,null,null,null,null,null,null,null,null,null,null,null,null,"010801050402 - First Branch White River","010801050402","First Branch White River"]
[null,null,null,null,null,null,null,"Cambridge","6 - Black Creek (VT06-05)",null,null,null,null,null,null,null,null,null,null,null,null,null,null,null,"010801050501 - Broad Brook-White River","010801050501","Broad Brook-White River"]
[null,null,null,null,null,null,null,"Canaan","6 - Lower Missisquoi River (VT06-01)",null,null,null,null,null,null,null,null,null,null,null,null,null,null,null,"010801050502 - Mill Brook-White River","010801050502","Mill Brook-White River"]
[null,null,null,null,null,null,null,"Castleton","6 - Mid Missisquoi River (VT06-02)",null,null,null,null,null,null,null,null,null,null,null,null,null,null,null,"010801050503 - White River","010801050503","White River"]
[null,null,null,null,null,null,null,"Cavendish","6 - Missisquoi River Basin ",null,null,null,null,null,null,null,null,null,null,null,null,null,null,null,"010801060201 - Headwaters Ottauquechee River","010801060201","Headwaters Ottauquechee River"]
[null,null,null,null,null,null,null,"Charleston","6 - Tributaries to Lower Missisquoi (VT06-03)",null,null,null,null,null,null,null,null,null,null,null,null,null,null,null,"010801060202 - North Branch Ottauquechee River","010801060202","North Branch Ottauquechee River"]
[null,null,null,null,null,null,null,"Charlotte","6 - Tributaries to Mid Missisquoi (VT06-04)",null,null,null,null,null,null,null,null,null,null,null,null,null,null,null,"010801060203 - Broad Brook","010801060203","Broad Brook"]
[null,null,null,null,null,null,null,"Chelsea","6 - Trout River (VT06-07)",null,null,null,null,null,null,null,null,null,null,null,null,null,null,null,{"$f":"Z67&\" - \"&AA67","v":"010801060204 - Kedron Brook"},"010801060204","Kedron Brook"]
[null,null,null,null,null,null,null,"Chester","6 - Tyler Branch (VT06-06)",null,null,null,null,null,null,null,null,null,null,null,null,null,null,null,"010801060205 - Beaver Brook-Ottauquechee River","010801060205","Beaver Brook-Ottauquechee River"]
[null,null,null,null,null,null,null,"Chittenden","6 - Upper Missisquoi River (VT06-08)",null,null,null,null,null,null,null,null,null,null,null,null,null,null,null,"010801060206 - Gulf Stream","010801060206","Gulf Stream"]
[null,null,null,null,null,null,null,"Clarendon","7 - Brewster River (VT07-13)",null,null,null,null,null,null,null,null,null,null,null,null,null,null,null,"010801060207 - Ottauquechee River","010801060207","Ottauquechee River"]
[null,null,null,null,null,null,null,"Colchester","7 - Elmore Branch (VT07-20)",null,null,null,null,null,null,null,null,null,null,null,null,null,null,null,"010801060302 - Lulls Brook-Connecticut River","010801060302","Lulls Brook-Connecticut River"]
[null,null,null,null,null,null,null,"Concord","7 - Gihon River (VT07-15)",null,null,null,null,null,null,null,null,null,null,null,null,null,null,null,"010801060304 - Mill Brook","010801060304","Mill Brook"]
[null,null,null,null,null,null,null,"Corinth","7 - Green River (Basin 7) (VT07-18)",null,null,null,null,null,null,null,null,null,null,null,null,null,null,null,"010801060305 - Hubbard Brook-Connecticut River","010801060305","Hubbard Brook-Connecticut River"]
[null,null,null,null,null,null,null,"Cornwall","7 - Kenfield Brook (VT07-16)",null,null,null,null,null,null,null,null,null,null,null,null,null,null,null,"010801060501 - Headwaters Black River","010801060501","Headwaters Black River"]
[null,null,null,null,null,null,null,"Coventry","7 - Lamoille River Basin ",null,null,null,null,null,null,null,null,null,null,null,null,null,null,null,"010801060502 - Branch Brook-Black River","010801060502","Branch Brook-Black River"]
[null,null,null,null,null,null,null,"Craftsbury","7 - Lower Browns River (VT07-10)",null,null,null,null,null,null,null,null,null,null,null,null,null,null,null,"010801060503 - Twentymile Stream-Black River","010801060503","Twentymile Stream-Black River"]
[null,null,null,null,null,null,null,"Danby","7 - Lower Headwaters Lamoille River (VT07-21)",null,null,null,null,null,null,null,null,null,null,null,null,null,null,null,"010801060504 - North Branch Black River","010801060504","North Branch Black River"]
[null,null,null,null,null,null,null,"Danville","7 - Lower Lamoille River (VT07-01)",null,null,null,null,null,null,null,null,null,null,null,null,null,null,null,"010801060505 - Black River","010801060505","Black River"]
[null,null,null,null,null,null,null,"Derby","7 - Lower Mid-Lamoille River (VT07-02)",null,null,null,null,null,null,null,null,null,null,null,null,null,null,null,"010801060601 - Headwaters Williams River","010801060601","Headwaters Williams River"]
[null,null,null,null,null,null,null,"Dorset","7 - Mill Brook (VT07-09)",null,null,null,null,null,null,null,null,null,null,null,null,null,null,null,"010801060602 - Middle Branch Williams River","010801060602","Middle Branch Williams River"]
[null,null,null,null,null,null,null,"Dover","7 - North Branch Lamoille River (VT07-14)",null,null,null,null,null,null,null,null,null,null,null,null,null,null,null,"010801060603 - Williams River","010801060603","Williams River"]
[null,null,null,null,null,null,null,"Dummerston","7 - Ryder Brook (VT07-17)",null,null,null,null,null,null,null,null,null,null,null,null,null,null,null,"010801060702 - Spencer Brook-Connecticut River","010801060702","Spencer Brook-Connecticut River"]
[null,null,null,null,null,null,null,"Duxbury","7 - Seymour River (VT07-12)",null,null,null,null,null,null,null,null,null,null,null,null,null,null,null,"010801060703 - Jabes Hackett Brook-Connecticut River","010801060703","Jabes Hackett Brook-Connecticut River"]
[null,null,null,null,null,null,null,"East Haven","7 - Tributaries to Lower Mid Lamoille (VT07-03)",null,null,null,null,null,null,null,null,null,null,null,null,null,null,null,"010801070101 - Headwaters Saxtons River","010801070101","Headwaters Saxtons River"]
[null,null,null,null,null,null,null,"East Montpelier","7 - Tributaries to Upper Lamoille River (VT07-08)",null,null,null,null,null,null,null,null,null,null,null,null,null,null,null,"010801070102 - Saxtons River","010801070102","Saxtons River"]
[null,null,null,null,null,null,null,"Eden","7 - Tributaries to Upper Mid Lamoille (A) (VT07-05)",null,null,null,null,null,null,null,null,null,null,null,null,null,null,null,"010801070301 - Headwaters West River","010801070301","Headwaters West River"]
[null,null,null,null,null,null,null,"Elmore","7 - Tributaries to Upper Mid Lamoille (B) (VT07-06)",null,null,null,null,null,null,null,null,null,null,null,null,null,null,null,"010801070302 - Utley Brook","010801070302","Utley Brook"]
[null,null,null,null,null,null,null,"Enosburgh","7 - Upper Browns River (VT07-11)",null,null,null,null,null,null,null,null,null,null,null,null,null,null,null,"010801070303 - Flood Brook-West River","010801070303","Flood Brook-West River"]
[null,null,null,null,null,null,null,"Essex","7 - Upper Headwaters Lamoille River (VT07-22)",null,null,null,null,null,null,null,null,null,null,null,null,null,null,null,"010801070304 - Winhall River","010801070304","Winhall River"]
[null,null,null,null,null,null,null,"Fair Haven","7 - Upper Lamoille River (VT07-07)",null,null,null,null,null,null,null,null,null,null,null,null,null,null,null,"010801070305 - Cobb Brook-West River","010801070305","Cobb Brook-West River"]
[null,null,null,null,null,null,null,"Fairfax","7 - Upper Mid Lamoille River (VT07-04)",null,null,null,null,null,null,null,null,null,null,null,null,null,null,null,"010801070306 - Ball Mountain Brook","010801070306","Ball Mountain Brook"]
[null,null,null,null,null,null,null,"Fairfield","7 - Wild Branch (VT07-19)",null,null,null,null,null,null,null,null,null,null,null,null,null,null,null,"010801070307 - Turkey Mountain Brook-West River","010801070307","Turkey Mountain Brook-West River"]
[null,null,null,null,null,null,null,"Fairlee","8 - Dog River (VT08-17)",null,null,null,null,null,null,null,null,null,null,null,null,null,null,null,"010801070401 - Wardsboro Brook","010801070401","Wardsboro Brook"]
[null,null,null,null,null,null,null,"Fayston","8 - Huntington River (VT08-10)",null,null,null,null,null,null,null,null,null,null,null,null,null,null,null,"010801070402 - Mill Brook-West River","010801070402","Mill Brook-West River"]
[null,null,null,null,null,null,null,"Ferdinand","8 - Jail Branch Winooski River (VT08-15)",null,null,null,null,null,null,null,null,null,null,null,null,null,null,null,"010801070403 - Grassy Brook","010801070403","Grassy Brook"]
[null,null,null,null,null,null,null,"Ferrisburgh","8 - Kingsbury Branch Winooski River (VT08-14)",null,null,null,null,null,null,null,null,null,null,null,null,null,null,null,"010801070404 - Smith Brook-West River","010801070404","Smith Brook-West River"]
[null,null,null,null,null,null,null,"Fletcher","8 - Lower Little River (VT08-11)",null,null,null,null,null,null,null,null,null,null,null,null,null,null,null,"010801070405 - Rock River","010801070405","Rock River"]
[null,null,null,null,null,null,null,"Franklin","8 - Lower Mad River Tributaries (VT08-19)",null,null,null,null,null,null,null,null,null,null,null,null,null,null,null,"010801070406 - West River","010801070406","West River"]
[null,null,null,null,null,null,null,"Georgia","8 - Lower Mid-Winooski River (VT08-03)",null,null,null,null,null,null,null,null,null,null,null,null,null,null,null,"010801070501 - Great Brook-Connecticut River","010801070501","Great Brook-Connecticut River"]
[null,null,null,null,null,null,null,"Glastenbury","8 - Lower Winooski River (VT08-01)",null,null,null,null,null,null,null,null,null,null,null,null,null,null,null,"010801070502 - East Putney Brook-Connecticut River","010801070502","East Putney Brook-Connecticut River"]
[null,null,null,null,null,null,null,"Glover","8 - Mad River (VT08-18)",null,null,null,null,null,null,null,null,null,null,null,null,null,null,null,"010801070504 - Sacketts Brook","010801070504","Sacketts Brook"]
[null,null,null,null,null,null,null,"Goshen","8 - North Branch Winooski River (VT08-13)",null,null,null,null,null,null,null,null,null,null,null,null,null,null,null,"010801070505 - Catsbane Brook-Connecticut River","010801070505","Catsbane Brook-Connecticut River"]
[null,null,null,null,null,null,null,"Grafton","8 - Stevens Branch Winooski River (VT08-16)",null,null,null,null,null,null,null,null,null,null,null,null,null,null,null,"010801070506 - Whetstone Brook","010801070506","Whetstone Brook"]
[null,null,null,null,null,null,null,"Granby","8 - Tributaries to Lower Mid-Winooski (VT08-04)",null,null,null,null,null,null,null,null,null,null,null,null,null,null,null,"010801070507 - Vernon Dam-Connecticut River","010801070507","Vernon Dam-Connecticut River"]
[null,null,null,null,null,null,null,"Grand Isle","8 - Tributaries to Lower Winooski (VT08-02)",null,null,null,null,null,null,null,null,null,null,null,null,null,null,null,"010802010501 - Pauchaug Brook-Connecticut River","010802010501","Pauchaug Brook-Connecticut River"]
[null,null,null,null,null,null,null,"Granville","8 - Tributaries to Upper Mid-Winooski (VT08-06)",null,null,null,null,null,null,null,null,null,null,null,null,null,null,null,"010802010502 - Fall River","010802010502","Fall River"]
[null,null,null,null,null,null,null,"Greensboro","8 - Tributaries to Upper Winooski (VT08-08)",null,null,null,null,null,null,null,null,null,null,null,null,null,null,null,"010802030101 - Headwaters Deerfield River","010802030101","Headwaters Deerfield River"]
[null,null,null,null,null,null,null,"Groton","8 - Upper Little River (VT08-12)",null,null,null,null,null,null,null,null,null,null,null,null,null,null,null,"010802030102 - East Branch Deerfield River","010802030102","East Branch Deerfield River"]
[null,null,null,null,null,null,null,"Guildhall","8 - Upper Mad River Tributaries (VT08-20)",null,null,null,null,null,null,null,null,null,null,null,null,null,null,null,"010802030103 - North Branch Deerfield River","010802030103","North Branch Deerfield River"]
[null,null,null,null,null,null,null,"Guilford","8 - Upper Mid-Winooski River (VT08-05)",null,null,null,null,null,null,null,null,null,null,null,null,null,null,null,"010802030104 - West Branch Deerfield River","010802030104","West Branch Deerfield River"]
[null,null,null,null,null,null,null,"Halifax","8 - Upper Winooski River (VT08-07)",null,null,null,null,null,null,null,null,null,null,null,null,null,null,null,"010802030105 - Sherman Dam-Deerfield River","010802030105","Sherman Dam-Deerfield River"]
[null,null,null,null,null,null,null,"Hancock","8 - Winooski River Basin ",null,null,null,null,null,null,null,null,null,null,null,null,null,null,null,"010802030201 - Pelham Brook-Deerfield River","010802030201","Pelham Brook-Deerfield River"]
[null,null,null,null,null,null,null,"Hardwick","8 - Winooski River Headwaters (VT08-09)",null,null,null,null,null,null,null,null,null,null,null,null,null,null,null,"010802030301 - East Branch North River","010802030301","East Branch North River"]
[null,null,null,null,null,null,null,"Hartford","9 - First Branch - White River (VT09-04)",null,null,null,null,null,null,null,null,null,null,null,null,null,null,null,"010802030302 - Taylor Brook-North River","010802030302","Taylor Brook-North River"]
[null,null,null,null,null,null,null,"Hartland","9 - Lower White River Mainstem (VT09-01)",null,null,null,null,null,null,null,null,null,null,null,null,null,null,null,"010802030401 - Upper Green River","010802030401","Upper Green River"]
[null,null,null,null,null,null,null,"Highgate","9 - Middle White River Mainstem (VT09-02)",null,null,null,null,null,null,null,null,null,null,null,null,null,null,null,"010802030402 - Lower Green River","010802030402","Lower Green River"]
[null,null,null,null,null,null,null,"Hinesburg","9 - Second Branch - White River (VT09-05)",null,null,null,null,null,null,null,null,null,null,null,null,null,null,null,"020200030101 - West Branch Black Creek","020200030101","West Branch Black Creek"]
[null,null,null,null,null,null,null,"Holland","9 - Third Branch - White River (VT09-06)",null,null,null,null,null,null,null,null,null,null,null,null,null,null,null,"020200030102 - Mill Brook-White Creek","020200030102","Mill Brook-White Creek"]
[null,null,null,null,null,null,null,"Hubbardton","9 - Tributaries to Lower White River (VT09-03)",null,null,null,null,null,null,null,null,null,null,null,null,null,null,null,"020200030201 - West Branch Batten Kill-Batten Kill","020200030201","West Branch Batten Kill-Batten Kill"]
[null,null,null,null,null,null,null,"Huntington","9 - Upper White River Watershed (VT09-07)",null,null,null,null,null,null,null,null,null,null,null,null,null,null,null,"020200030202 - Warm Brook","020200030202","Warm Brook"]
[null,null,null,null,null,null,null,"Hyde Park","9 - White River Basin ",null,null,null,null,null,null,null,null,null,null,null,null,null,null,null,"020200030203 - Lye Brook-Batten Kill","020200030203","Lye Brook-Batten Kill"]
[null,null,null,null,null,null,null,"Ira","10 - Barnard Brook (VT10-10)",null,null,null,null,null,null,null,null,null,null,null,null,null,null,null,"020200030204 - Camden Creek","020200030204","Camden Creek"]
[null,null,null,null,null,null,null,"Irasburg","10 - Black River Headwaters (VT10-15)",null,null,null,null,null,null,null,null,null,null,null,null,null,null,null,"020200030205 - Green River-Batten Kill","020200030205","Green River-Batten Kill"]
[null,null,null,null,null,null,null,"Isle La Motte","10 - Broad Brook (Basin 10) (VT10-08)",null,null,null,null,null,null,null,null,null,null,null,null,null,null,null,"020200030206 - Steele Brook-Batten Kill","020200030206","Steele Brook-Batten Kill"]
[null,null,null,null,null,null,null,"Jamaica","10 - Kedron Brook (VT10-07)",null,null,null,null,null,null,null,null,null,null,null,null,null,null,null,"020200030602 - North Branch Hoosic River","020200030602","North Branch Hoosic River"]
[null,null,null,null,null,null,null,"Jay","10 - Lower Black River (Basin 10) (VT10-11)",null,null,null,null,null,null,null,null,null,null,null,null,null,null,null,"020200030605 - Hemlock Brook-Hoosic River","020200030605","Hemlock Brook-Hoosic River"]
[null,null,null,null,null,null,null,"Jericho","10 - Lower Ottauquechee River (VT10-01)",null,null,null,null,null,null,null,null,null,null,null,null,null,null,null,"020200030701 - Roaring Branch Walloomsac Brook","020200030701","Roaring Branch Walloomsac Brook"]
[null,null,null,null,null,null,null,"Johnson","10 - Mid-Black River (VT10-13)",null,null,null,null,null,null,null,null,null,null,null,null,null,null,null,"020200030702 - South Stream-Walloomsac River","020200030702","South Stream-Walloomsac River"]
[null,null,null,null,null,null,null,"Killington","10 - Mid-Ottauquechee River (VT10-03)",null,null,null,null,null,null,null,null,null,null,null,null,null,null,null,"020200030703 - Little White Creek","020200030703","Little White Creek"]
[null,null,null,null,null,null,null,"Kirby","10 - North Branch Black River (VT10-16)",null,null,null,null,null,null,null,null,null,null,null,null,null,null,null,"020200030704 - Walloomsac River","020200030704","Walloomsac River"]
[null,null,null,null,null,null,null,"Landgrove","10 - North Branch Ottauquechee River (VT10-09)",null,null,null,null,null,null,null,null,null,null,null,null,null,null,null,{"$f":"Z131&\" - \"&AA131","v":"020200030802 - Little Hoosic River"},"020200030802","Little Hoosic River"]
[null,null,null,null,null,null,null,"Leicester","10 - Ottauquechee Black Basin ",null,null,null,null,null,null,null,null,null,null,null,null,null,null,null,"020200030803 - Ladd Brook-Hoosic River","020200030803","Ladd Brook-Hoosic River"]
[null,null,null,null,null,null,null,"Lemington","10 - Tributaries to Lower Black River (VT10-12)",null,null,null,null,null,null,null,null,null,null,null,null,null,null,null,"020200030804 - Browns Brook-Hoosic River","020200030804","Browns Brook-Hoosic River"]
[null,null,null,null,null,null,null,"Lewis","10 - Tributaries to Lower Ottauquechee (VT10-02)",null,null,null,null,null,null,null,null,null,null,null,null,null,null,null,"020200030901 - White Creek","020200030901","White Creek"]
[null,null,null,null,null,null,null,"Lincoln","10 - Tributaries to Mid Ottauquechee (VT10-04)",null,null,null,null,null,null,null,null,null,null,null,null,null,null,null,"043001010201 - Headwaters Mettawee River","043001010201","Headwaters Mettawee River"]
[null,null,null,null,null,null,null,"Londonderry","10 - Tributaries to Upper Ottauquechee (VT10-06)",null,null,null,null,null,null,null,null,null,null,null,null,null,null,null,"043001010202 - Flower Brook","043001010202","Flower Brook"]
[null,null,null,null,null,null,null,"Lowell","10 - Upper Black River (Basin 10) (VT10-14)",null,null,null,null,null,null,null,null,null,null,null,null,null,null,null,"043001010203 - Wells Brook-Mettawee River","043001010203","Wells Brook-Mettawee River"]
[null,null,null,null,null,null,null,"Ludlow","10 - Upper Ottauquechee River (VT10-05)",null,null,null,null,null,null,null,null,null,null,null,null,null,null,null,"043001010204 - Indian River","043001010204","Indian River"]
[null,null,null,null,null,null,null,"Lunenburg","11 - Ball Mountain Brook (VT11-15)",null,null,null,null,null,null,null,null,null,null,null,null,null,null,null,"043001010205 - Mettawee River","043001010205","Mettawee River"]
[null,null,null,null,null,null,null,"Lyndon","11 - Cobb & Turkey Mountain Brooks (VT11-13)",null,null,null,null,null,null,null,null,null,null,null,null,null,null,null,"043001010301 - Headwaters Poultney River","043001010301","Headwaters Poultney River"]
[null,null,null,null,null,null,null,"Maidstone","11 - Grassy Brook (VT11-11)",null,null,null,null,null,null,null,null,null,null,null,null,null,null,null,"043001010302 - Finel Hollow Brook-Poultney River","043001010302","Finel Hollow Brook-Poultney River"]
[null,null,null,null,null,null,null,"Manchester","11 - Lower Saxtons River (VT11-05)",null,null,null,null,null,null,null,null,null,null,null,null,null,null,null,"043001010303 - Headwaters Castleton River","043001010303","Headwaters Castleton River"]
[null,null,null,null,null,null,null,"Marlboro","11 - Lower West River (VT11-07)",null,null,null,null,null,null,null,null,null,null,null,null,null,null,null,"043001010304 - Castleton River","043001010304","Castleton River"]
[null,null,null,null,null,null,null,"Marshfield","11 - Lower Williams River (VT11-01)",null,null,null,null,null,null,null,null,null,null,null,null,null,null,null,"043001010305 - Mud Brook-Poultney River","043001010305","Mud Brook-Poultney River"]
[null,null,null,null,null,null,null,"Mendon","11 - Mid-West River (VT11-10)",null,null,null,null,null,null,null,null,null,null,null,null,null,null,null,"043001010306 - Hubbardton River","043001010306","Hubbardton River"]
[null,null,null,null,null,null,null,"Middlebury","11 - Middle Branch Williams River (VT11-03)",null,null,null,null,null,null,null,null,null,null,null,null,null,null,null,"043001010307 - Poultney River-Head of Lake Champlain","043001010307","Poultney River-Head of Lake Champlain"]
[null,null,null,null,null,null,null,"Middlesex","11 - Minor Tribs Lower Williams (VT11-02)",null,null,null,null,null,null,null,null,null,null,null,null,null,null,null,"043001020101 - Headwaters Otter Creek","043001020101","Headwaters Otter Creek"]
[null,null,null,null,null,null,null,"Middletown Springs","11 - Rock River (Basin 11) (VT11-09)",null,null,null,null,null,null,null,null,null,null,null,null,null,null,null,"043001020102 - Big Branch","043001020102","Big Branch"]
[null,null,null,null,null,null,null,"Milton","11 - Tributaries to Mid-West River (VT11-12)",null,null,null,null,null,null,null,null,null,null,null,null,null,null,null,"043001020103 - Homer Stone Brook-Otter Creek","043001020103","Homer Stone Brook-Otter Creek"]
[null,null,null,null,null,null,null,"Monkton","11 - Tributaries to the Lower West River (VT11-08)",null,null,null,null,null,null,null,null,null,null,null,null,null,null,null,"043001020104 - Headwaters Mill Creek","043001020104","Headwaters Mill Creek"]
[null,null,null,null,null,null,null,"Montgomery","11 - Tributaries to Upper West River (VT11-18)",null,null,null,null,null,null,null,null,null,null,null,null,null,null,null,"043001020105 - Mill Creek","043001020105","Mill Creek"]
[null,null,null,null,null,null,null,"Montpelier","11 - Upper Saxtons River (VT11-06)",null,null,null,null,null,null,null,null,null,null,null,null,null,null,null,"043001020106 - Cold River","043001020106","Cold River"]
[null,null,null,null,null,null,null,"Moretown","11 - Upper West River (VT11-17)",null,null,null,null,null,null,null,null,null,null,null,null,null,null,null,"043001020107 - East Creek","043001020107","East Creek"]
[null,null,null,null,null,null,null,"Morgan","11 - Upper Williams River (VT11-04)",null,null,null,null,null,null,null,null,null,null,null,null,null,null,null,"043001020108 - Clarendon River","043001020108","Clarendon River"]
[null,null,null,null,null,null,null,"Morristown","11 - Wardsboro Brook (VT11-14)",null,null,null,null,null,null,null,null,null,null,null,null,null,null,null,"043001020109 - Moon Brook-Otter Creek","043001020109","Moon Brook-Otter Creek"]
[null,null,null,null,null,null,null,"Mount Holly","11 - West, Williams, Saxton Basin ",null,null,null,null,null,null,null,null,null,null,null,null,null,null,null,"043001020201 - Headwaters New Haven River","043001020201","Headwaters New Haven River"]
[null,null,null,null,null,null,null,"Mount Tabor","11 - Winhall River (VT11-16)",null,null,null,null,null,null,null,null,null,null,null,null,null,null,null,"043001020202 - Baldwin Creek","043001020202","Baldwin Creek"]
[null,null,null,null,null,null,null,"New Haven","12 - Deerfield Basin ",null,null,null,null,null,null,null,null,null,null,null,null,null,null,null,"043001020203 - New Haven River","043001020203","New Haven River"]
[null,null,null,null,null,null,null,"Newark","12 - East Branch Deerfield River (VT12-03)",null,null,null,null,null,null,null,null,null,null,null,null,null,null,null,"043001020301 - Furnace Brook","043001020301","Furnace Brook"]
[null,null,null,null,null,null,null,"Newbury","12 - East Branch North River (VT12-07)",null,null,null,null,null,null,null,null,null,null,null,null,null,null,null,"043001020302 - Bresee Mill Brook-Otter Creek","043001020302","Bresee Mill Brook-Otter Creek"]
[null,null,null,null,null,null,null,"Newfane","12 - Green River (Basin 12) (VT12-06)",null,null,null,null,null,null,null,null,null,null,null,null,null,null,null,"043001020303 - Neshobe River","043001020303","Neshobe River"]
[null,null,null,null,null,null,null,"Newport City","12 - Lower Deerfield River (VT12-01)",null,null,null,null,null,null,null,null,null,null,null,null,null,null,null,"043001020304 - Willow Brook-Otter Creek","043001020304","Willow Brook-Otter Creek"]
[null,null,null,null,null,null,null,"Newport Town","12 - North Branch Deerfield River (VT12-05)",null,null,null,null,null,null,null,null,null,null,null,null,null,null,null,"043001020305 - Leicester River","043001020305","Leicester River"]
[null,null,null,null,null,null,null,"North Hero","12 - Upper Deerfield River (VT12-04)",null,null,null,null,null,null,null,null,null,null,null,null,null,null,null,"043001020306 - Middlebury River","043001020306","Middlebury River"]
[null,null,null,null,null,null,null,"Northfield","12 - West Branch Deerfield River (VT12-02)",null,null,null,null,null,null,null,null,null,null,null,null,null,null,null,"043001020307 - Pleasant Brook-Otter Creek","043001020307","Pleasant Brook-Otter Creek"]
[null,null,null,null,null,null,null,"Norton","13 - Broad Brook (Basin 13) (VT13-15)",null,null,null,null,null,null,null,null,null,null,null,null,null,null,null,"043001020401 - Upper Lemon Fair River","043001020401","Upper Lemon Fair River"]
[null,null,null,null,null,null,null,"Norwich","13 - Dummerston Direct Drainages (VT13-13)",null,null,null,null,null,null,null,null,null,null,null,null,null,null,null,"043001020402 - Lower Lemon Fair River","043001020402","Lower Lemon Fair River"]
[null,null,null,null,null,null,null,"Orange","13 - Hartford Direct Drainage (VT13-06)",null,null,null,null,null,null,null,null,null,null,null,null,null,null,null,"043001020501 - Dead Creek","043001020501","Dead Creek"]
[null,null,null,null,null,null,null,"Orwell","13 - Hartland - Windsor Direct Drainages (VT13-07)",null,null,null,null,null,null,null,null,null,null,null,null,null,null,null,"043001020502 - Otter Creek","043001020502","Otter Creek"]
[null,null,null,null,null,null,null,"Panton","13 - Lower Connecticut River (VT13-05)",null,null,null,null,null,null,null,null,null,null,null,null,null,null,null,"043001030101 - Headwaters Stevens Branch","043001030101","Headwaters Stevens Branch"]
[null,null,null,null,null,null,null,"Pawlet","13 - Mass Direct Drainages (VT13-17)",null,null,null,null,null,null,null,null,null,null,null,null,null,null,null,"043001030102 - Jail Branch","043001030102","Jail Branch"]
[null,null,null,null,null,null,null,"Peacham","13 - Mid-Southern Connecticut River (VT13-03)",null,null,null,null,null,null,null,null,null,null,null,null,null,null,null,"043001030103 - Stevens Branch","043001030103","Stevens Branch"]
[null,null,null,null,null,null,null,"Peru","13 - Reading - Windsor Direct Drainages (VT13-08)",null,null,null,null,null,null,null,null,null,null,null,null,null,null,null,"043001030201 - Headwaters Winooski River","043001030201","Headwaters Winooski River"]
[null,null,null,null,null,null,null,"Pittsfield","13 - Sacketts Brook (VT13-12)",null,null,null,null,null,null,null,null,null,null,null,null,null,null,null,"043001030202 - Nasmith Brook-Winooski River","043001030202","Nasmith Brook-Winooski River"]
[null,null,null,null,null,null,null,"Pittsford","13 - Springfield - Rockingham Direct Drainages (VT13-10)",null,null,null,null,null,null,null,null,null,null,null,null,null,null,null,"043001030203 - Kingsbury Branch","043001030203","Kingsbury Branch"]
[null,null,null,null,null,null,null,"Plainfield","13 - Upper Mid-Southern Connecticut River (VT13-02)",null,null,null,null,null,null,null,null,null,null,null,null,null,null,null,"043001030204 - Sodom Pond Brook-Winooski River","043001030204","Sodom Pond Brook-Winooski River"]
[null,null,null,null,null,null,null,"Plymouth","13 - Upper Southern Connecticut River (VT13-01)",null,null,null,null,null,null,null,null,null,null,null,null,null,null,null,"043001030301 - Headwaters North Branch Winooski River","043001030301","Headwaters North Branch Winooski River"]
[null,null,null,null,null,null,null,"Pomfret","13 - Vernon Direct Drainages (VT13-16)",null,null,null,null,null,null,null,null,null,null,null,null,null,null,null,"043001030302 - North Branch Winooski River","043001030302","North Branch Winooski River"]
[null,null,null,null,null,null,null,"Poultney","13 - Vernon Impoundment (VT13-04)",null,null,null,null,null,null,null,null,null,null,null,null,null,null,null,"043001030401 - Headwaters Dog River","043001030401","Headwaters Dog River"]
[null,null,null,null,null,null,null,"Pownal","13 - Weathersfield - Springfield Direct Drainages (VT13-09)",null,null,null,null,null,null,null,null,null,null,null,null,null,null,null,"043001030402 - Dog River","043001030402","Dog River"]
[null,null,null,null,null,null,null,"Proctor","13 - Westminster Direct Drainages (VT13-11)",null,null,null,null,null,null,null,null,null,null,null,null,null,null,null,"043001030403 - Great Brook-Winooski River","043001030403","Great Brook-Winooski River"]
[null,null,null,null,null,null,null,"Putney","13 - Whetstone Brook (VT13-14)",null,null,null,null,null,null,null,null,null,null,null,null,null,null,null,"043001030501 - Headwaters Mad River","043001030501","Headwaters Mad River"]
[null,null,null,null,null,null,null,"Randolph","14 - Lower Ompompanoosuc River (VT14-01)",null,null,null,null,null,null,null,null,null,null,null,null,null,null,null,"043001030502 - Mill Brook-Mad River","043001030502","Mill Brook-Mad River"]
[null,null,null,null,null,null,null,"Reading","14 - Lower Waits River (VT14-04)",null,null,null,null,null,null,null,null,null,null,null,null,null,null,null,"043001030503 - Shepard Brook","043001030503","Shepard Brook"]
[null,null,null,null,null,null,null,"Readsboro","14 - Lower Wells River (VT14-07)",null,null,null,null,null,null,null,null,null,null,null,null,null,null,null,"043001030504 - Mad River","043001030504","Mad River"]
[null,null,null,null,null,null,null,"Richford","14 - Ompompanoosuc River (VT14-03)",null,null,null,null,null,null,null,null,null,null,null,null,null,null,null,"043001030601 - Graves Brook-Winooski River","043001030601","Graves Brook-Winooski River"]
[null,null,null,null,null,null,null,"Richmond","14 - Ompompanoosuc, Waits, Wells and Stevens Rivers ",null,null,null,null,null,null,null,null,null,null,null,null,null,null,null,"043001030602 - Headwaters Little River","043001030602","Headwaters Little River"]
[null,null,null,null,null,null,null,"Ripton","14 - South Branch Waits River (VT14-06)",null,null,null,null,null,null,null,null,null,null,null,null,null,null,null,"043001030603 - Little River","043001030603","Little River"]
[null,null,null,null,null,null,null,"Rochester","14 - Stevens River (VT14-09)",null,null,null,null,null,null,null,null,null,null,null,null,null,null,null,"043001030604 - Joiner Brook-Winooski River","043001030604","Joiner Brook-Winooski River"]
[null,null,null,null,null,null,null,"Rockingham","14 - Upper Waits River (VT14-05)",null,null,null,null,null,null,null,null,null,null,null,null,null,null,null,"043001030701 - Huntington River","043001030701","Huntington River"]
[null,null,null,null,null,null,null,"Roxbury","14 - Upper Wells River (VT14-08)",null,null,null,null,null,null,null,null,null,null,null,null,null,null,null,"043001030702 - Snipe Island Brook-Winooski River","043001030702","Snipe Island Brook-Winooski River"]
[null,null,null,null,null,null,null,"Royalton","14 - West Branch Ompompanoosuc River (VT14-02)",null,null,null,null,null,null,null,null,null,null,null,null,null,null,null,"043001030703 - Muddy Brook","043001030703","Muddy Brook"]
[null,null,null,null,null,null,null,"Rupert","15 - East Branch Passumpsic River (VT15-08)",null,null,null,null,null,null,null,null,null,null,null,null,null,null,null,"043001030704 - Winooski River","043001030704","Winooski River"]
[null,null,null,null,null,null,null,"Rutland City","15 - Joes Brook (VT15-02)",null,null,null,null,null,null,null,null,null,null,null,null,null,null,null,"043001050101 - Headwaters Lamoille River","043001050101","Headwaters Lamoille River"]
[null,null,null,null,null,null,null,"Rutland Town","15 - Lower Tributaries to Passumpsic River (VT15-03)",null,null,null,null,null,null,null,null,null,null,null,null,null,null,null,{"$f":"Z195&\" - \"&AA195","v":"043001050102 - Hardwick Lake Dam-Lamoille River"},"043001050102","Hardwick Lake Dam-Lamoille River"]
[null,null,null,null,null,null,null,"Ryegate","15 - Millers Run (VT15-06)",null,null,null,null,null,null,null,null,null,null,null,null,null,null,null,"043001050103 - Wild Branch","043001050103","Wild Branch"]
[null,null,null,null,null,null,null,"Salisbury","15 - Moose River (VT15-09)",null,null,null,null,null,null,null,null,null,null,null,null,null,null,null,"043001050104 - Elmore Branch-Lamoille River","043001050104","Elmore Branch-Lamoille River"]
[null,null,null,null,null,null,null,"Sandgate","15 - Passumpsic Basin ",null,null,null,null,null,null,null,null,null,null,null,null,null,null,null,"043001050105 - Green River","043001050105","Green River"]
[null,null,null,null,null,null,null,"Searsburg","15 - Passumpsic Mainstem (VT15-01)",null,null,null,null,null,null,null,null,null,null,null,null,null,null,null,"043001050106 - Ryder Brook-Lamoille River","043001050106","Ryder Brook-Lamoille River"]
[null,null,null,null,null,null,null,"Shaftsbury","15 - Sleepers River (VT15-04)",null,null,null,null,null,null,null,null,null,null,null,null,null,null,null,"043001050107 - Kenfield Brook-Lamoille River","043001050107","Kenfield Brook-Lamoille River"]
[null,null,null,null,null,null,null,"Sharon","15 - Upper Tributaries - Passumpsic River (VT15-05)",null,null,null,null,null,null,null,null,null,null,null,null,null,null,null,"043001050201 - Headwaters Browns River","043001050201","Headwaters Browns River"]
[null,null,null,null,null,null,null,"Sheffield","15 - West Branch Passumpsic River (VT15-07)",null,null,null,null,null,null,null,null,null,null,null,null,null,null,null,"043001050202 - Browns River","043001050202","Browns River"]
[null,null,null,null,null,null,null,"Shelburne","16 - Barnet-Ryegate Direct Drainage (VT16-18)",null,null,null,null,null,null,null,null,null,null,null,null,null,null,null,"043001050301 - Gihon River","043001050301","Gihon River"]
[null,null,null,null,null,null,null,"Sheldon","16 - Bradford-Fairlee-Thetford Direct Drainage (VT16-20)",null,null,null,null,null,null,null,null,null,null,null,null,null,null,null,"043001050302 - North Branch LaMoille River","043001050302","North Branch LaMoille River"]
[null,null,null,null,null,null,null,"Shoreham","16 - Canaan Streams to Connecticut River (VT16-08)",null,null,null,null,null,null,null,null,null,null,null,null,null,null,null,"043001050303 - Brewster River-Lamoille River","043001050303","Brewster River-Lamoille River"]
[null,null,null,null,null,null,null,"Shrewsbury","16 - Comerford Impoundment (VT16-05)",null,null,null,null,null,null,null,null,null,null,null,null,null,null,null,"043001050304 - Seymour River-Lamoille River","043001050304","Seymour River-Lamoille River"]
[null,null,null,null,null,null,null,"Somerset","16 - Concord Direct Drainage (VT16-16)",null,null,null,null,null,null,null,null,null,null,null,null,null,null,null,"043001050305 - Stones Brook-Lamoille River","043001050305","Stones Brook-Lamoille River"]
[null,null,null,null,null,null,null,"South Burlington","16 - East Branch Nulhegan River (VT16-10)",null,null,null,null,null,null,null,null,null,null,null,null,null,null,null,"043001050306 - Lamoille River","043001050306","Lamoille River"]
[null,null,null,null,null,null,null,"South Hero","16 - Guildhall-Lunenburg Direct Drainage (VT16-15)",null,null,null,null,null,null,null,null,null,null,null,null,null,null,null,"043001070101 - Headwater Missisquoi River","043001070101","Headwater Missisquoi River"]
[null,null,null,null,null,null,null,"Springfield","16 - Lemington/Bloomfield Direct Tribs (VT16-09)",null,null,null,null,null,null,null,null,null,null,null,null,null,null,null,"043001070102 - Snider Brook-Missisquoi River","043001070102","Snider Brook-Missisquoi River"]
[null,null,null,null,null,null,null,"St. Albans City","16 - Lower Northern Connecticut River (VT16-07)",null,null,null,null,null,null,null,null,null,null,null,null,null,null,null,"043001070103 - Mineral Spring Brook-Missisquoi River","043001070103","Mineral Spring Brook-Missisquoi River"]
[null,null,null,null,null,null,null,"St. Albans Town","16 - Lower Upper Connecticut River (VT16-02)",null,null,null,null,null,null,null,null,null,null,null,null,null,null,null,"043001070106 - Mud Creek","043001070106","Mud Creek"]
[null,null,null,null,null,null,null,"St. George","16 - Maidstone-Guildhall Direct Drainage (VT16-14)",null,null,null,null,null,null,null,null,null,null,null,null,null,null,null,"043001070104 - Jay Branch","043001070104","Jay Branch"]
[null,null,null,null,null,null,null,"St. Johnsbury","16 - Mid-Northern Connecticut River (VT16-06)",null,null,null,null,null,null,null,null,null,null,null,null,null,null,null,"043001070107 - Beetle Brook-Missisquoi River","043001070107","Beetle Brook-Missisquoi River"]
[null,null,null,null,null,null,null,"Stamford","16 - Moore Impoundment (VT16-04)",null,null,null,null,null,null,null,null,null,null,null,null,null,null,null,"043001070206 - Leavit Brook-Missisquoi River","043001070206","Leavit Brook-Missisquoi River"]
[null,null,null,null,null,null,null,"Stannard","16 - Newbury Direct Drainage (VT16-19)",null,null,null,null,null,null,null,null,null,null,null,null,null,null,null,"043001070209 - Outlet Sutton River","043001070209","Outlet Sutton River"]
[null,null,null,null,null,null,null,"Starksboro","16 - Northern Connecticut River (VT16-03)",null,null,null,null,null,null,null,null,null,null,null,null,null,null,null,"043001070210 - Lucas Brook-Missisquoi River","043001070210","Lucas Brook-Missisquoi River"]
[null,null,null,null,null,null,null,"Stockbridge","16 - Norwich Direct Drainage (VT16-21)",null,null,null,null,null,null,null,null,null,null,null,null,null,null,null,"043001070301 - Headwaters Trout River","043001070301","Headwaters Trout River"]
[null,null,null,null,null,null,null,"Stowe","16 - Nulhegan River (VT16-11)",null,null,null,null,null,null,null,null,null,null,null,null,null,null,null,"043001070302 - Outlet Trout River","043001070302","Outlet Trout River"]
[null,null,null,null,null,null,null,"Strafford","16 - Paul Stream (VT16-13)",null,null,null,null,null,null,null,null,null,null,null,null,null,null,null,"043001070401 - Tyler Branch","043001070401","Tyler Branch"]
[null,null,null,null,null,null,null,"Stratton","16 - Upper Connecticut River (VT16-01)",null,null,null,null,null,null,null,null,null,null,null,null,null,null,null,"043001070402 - Enosburg Falls-Missisquoi River","043001070402","Enosburg Falls-Missisquoi River"]
[null,null,null,null,null,null,null,"Sudbury","16 - Upper Connecticut, Nulhegan, Wheeler, Paul Basin ",null,null,null,null,null,null,null,null,null,null,null,null,null,null,null,"043001070403 - Goodsell Brook-Missisquoi River","043001070403","Goodsell Brook-Missisquoi River"]
[null,null,null,null,null,null,null,"Sunderland","16 - Waterford Direct Drainage (VT16-17)",null,null,null,null,null,null,null,null,null,null,null,null,null,null,null,"043001070501 - Headwaters Black Creek","043001070501","Headwaters Black Creek"]
[null,null,null,null,null,null,null,"Sutton","16 - Wheeler Stream (VT16-12)",null,null,null,null,null,null,null,null,null,null,null,null,null,null,null,"043001070503 - Dead Creek","043001070503","Dead Creek"]
[null,null,null,null,null,null,null,"Swanton","17 - Coaticook River (VT17-03)",null,null,null,null,null,null,null,null,null,null,null,null,null,null,null,"043001070502 - Fairfield River","043001070502","Fairfield River"]
[null,null,null,null,null,null,null,"Thetford","17 - Lake Memphremagog Basin ",null,null,null,null,null,null,null,null,null,null,null,null,null,null,null,"043001070504 - Black Creek","043001070504","Black Creek"]
[null,null,null,null,null,null,null,"Tinmouth","17 - Lake Memphremagog Direct (VT17-01)",null,null,null,null,null,null,null,null,null,null,null,null,null,null,null,"043001070601 - McGowan Brook-Missisquoi River","043001070601","McGowan Brook-Missisquoi River"]
[null,null,null,null,null,null,null,"Topsham","17 - Lower Barton River (VT17-07)",null,null,null,null,null,null,null,null,null,null,null,null,null,null,null,"043001070602 - Hungerford Brook","043001070602","Hungerford Brook"]
[null,null,null,null,null,null,null,"Townshend","17 - Lower Black River (Basin 17) (VT17-09)",null,null,null,null,null,null,null,null,null,null,null,null,null,null,null,"043001070603 - Outlet Missisquoi River","043001070603","Outlet Missisquoi River"]
[null,null,null,null,null,null,null,"Troy","17 - Lower Clyde River (VT17-04)",null,null,null,null,null,null,null,null,null,null,null,null,null,null,null,"043001080104 - Charter Brook-Lake Champlain","043001080104","Charter Brook-Lake Champlain"]
[null,null,null,null,null,null,null,"Tunbridge","17 - Tomifobia River (VT17-02)",null,null,null,null,null,null,null,null,null,null,null,null,null,null,null,"043001080301 - East Creek","043001080301","East Creek"]
[null,null,null,null,null,null,null,"Underhill","17 - Upper Barton River (VT17-08)",null,null,null,null,null,null,null,null,null,null,null,null,null,null,null,"043001080304 - McKenzie Brook-Lake Champlain","043001080304","McKenzie Brook-Lake Champlain"]
[null,null,null,null,null,null,null,"Vergennes","17 - Upper Black River (Basin 17) (VT17-10)",null,null,null,null,null,null,null,null,null,null,null,null,null,null,null,"043001080401 - Headwaters Little Otter Creek","043001080401","Headwaters Little Otter Creek"]
[null,null,null,null,null,null,null,"Vernon","17 - Upper Clyde River (VT17-05)",null,null,null,null,null,null,null,null,null,null,null,null,null,null,null,"043001080402 - Outlet Little Otter Creek","043001080402","Outlet Little Otter Creek"]
[null,null,null,null,null,null,null,"Vershire","17 - Willoughby River (VT17-06)",null,null,null,null,null,null,null,null,null,null,null,null,null,null,null,"043001080501 - Headwaters Lewis Creek","043001080501","Headwaters Lewis Creek"]
[null,null,null,null,null,null,null,"Victory",null,null,null,null,null,null,null,null,null,null,null,null,null,null,null,null,"043001080502 - Outlet Lewis Creek","043001080502","Outlet Lewis Creek"]
[null,null,null,null,null,null,null,"Waitsfield",null,null,null,null,null,null,null,null,null,null,null,null,null,null,null,null,"043001080602 - Hoisington Brook-Lake Champlain","043001080602","Hoisington Brook-Lake Champlain"]
[null,null,null,null,null,null,null,"Walden",null,null,null,null,null,null,null,null,null,null,null,null,null,null,null,null,"043001080801 - La Platte River","043001080801","La Platte River"]
[null,null,null,null,null,null,null,"Wallingford",null,null,null,null,null,null,null,null,null,null,null,null,null,null,null,null,"043001080802 - Munroe Brook-Shelburne Bay","043001080802","Munroe Brook-Shelburne Bay"]
[null,null,null,null,null,null,null,"Waltham",null,null,null,null,null,null,null,null,null,null,null,null,null,null,null,null,"043001080901 - Malletts Creek","043001080901","Malletts Creek"]
[null,null,null,null,null,null,null,"Wardsboro",null,null,null,null,null,null,null,null,null,null,null,null,null,null,null,null,"043001080902 - Malletts Bay","043001080902","Malletts Bay"]
[null,null,null,null,null,null,null,"Warner's Grant",null,null,null,null,null,null,null,null,null,null,null,null,null,null,null,null,"043001081001 - Heawaters Pike River","043001081001","Heawaters Pike River"]
[null,null,null,null,null,null,null,"Warren",null,null,null,null,null,null,null,null,null,null,null,null,null,null,null,null,"043001081005 - Groat Creek","043001081005","Groat Creek"]
[null,null,null,null,null,null,null,"Warren's Gore",null,null,null,null,null,null,null,null,null,null,null,null,null,null,null,null,"043001081101 - Rock River","043001081101","Rock River"]
[null,null,null,null,null,null,null,"Washington",null,null,null,null,null,null,null,null,null,null,null,null,null,null,null,null,"043001081102 - Carman Brook-Missisquoi Bay","043001081102","Carman Brook-Missisquoi Bay"]
[null,null,null,null,null,null,null,"Waterbury",null,null,null,null,null,null,null,null,null,null,null,null,null,null,null,null,"043001081201 - Jewett Brook","043001081201","Jewett Brook"]
[null,null,null,null,null,null,null,"Waterford",null,null,null,null,null,null,null,null,null,null,null,null,null,null,null,null,"043001081202 - Mill River","043001081202","Mill River"]
[null,null,null,null,null,null,null,"Waterville",null,null,null,null,null,null,null,null,null,null,null,null,null,null,null,null,"043001081203 - Mud Creek","043001081203","Mud Creek"]
[null,null,null,null,null,null,null,"Weathersfield",null,null,null,null,null,null,null,null,null,null,null,null,null,null,null,null,"043001081204 - Saint Albans Bay-Lake Champlain","043001081204","Saint Albans Bay-Lake Champlain"]
[null,null,null,null,null,null,null,"Wells",null,null,null,null,null,null,null,null,null,null,null,null,null,null,null,null,"043001081604 - Lake Champlain","043001081604","Lake Champlain"]
[null,null,null,null,null,null,null,"West Fairlee",null,null,null,null,null,null,null,null,null,null,null,null,null,null,null,null,"043001081102 - Carman Brook-Missisquoi Bay","043001081102","Carman Brook-Missisquoi Bay"]
[null,null,null,null,null,null,null,"West Haven",null,null,null,null,null,null,null,null,null,null,null,null,null,null,null,null,"043001081604 - Lake Champlain","043001081604","Lake Champlain"]
[null,null,null,null,null,null,null,"West Rutland",null,null,null,null,null,null,null,null,null,null,null,null,null,null,null,null,"043001090302 - Little River-Richelieu River","043001090302","Little River-Richelieu River"]
[null,null,null,null,null,null,null,"West Windsor",null,null,null,null,null,null,null,null,null,null,null,null,null,null,null,null,"043001090303 - South River","043001090303","South River"]
[null,null,null,null,null,null,null,"Westfield",null,null,null,null,null,null,null,null,null,null,null,null,null,null,null,null,"043002021404 - Lake Memphremagog","043002021404","Lake Memphremagog"]
[null,null,null,null,null,null,null,"Westford",null,null,null,null,null,null,null,null,null,null,null,null,null,null,null,null,"043002021101 - Headwaters Barton River","043002021101","Headwaters Barton River"]
[null,null,null,null,null,null,null,"Westminster",null,null,null,null,null,null,null,null,null,null,null,null,null,null,null,null,"043002021102 - Willoughby Brook-Barton River","043002021102","Willoughby Brook-Barton River"]
[null,null,null,null,null,null,null,"Westmore",null,null,null,null,null,null,null,null,null,null,null,null,null,null,null,null,"043002021103 - Willoughby River","043002021103","Willoughby River"]
[null,null,null,null,null,null,null,"Weston",null,null,null,null,null,null,null,null,null,null,null,null,null,null,null,null,{"$f":"Z259&\" - \"&AA259","v":"043002021104 - Barton River"},"043002021104","Barton River"]
[null,null,null,null,null,null,null,"Weybridge",null,null,null,null,null,null,null,null,null,null,null,null,null,null,null,null,"043002021201 - Headwaters Black River","043002021201","Headwaters Black River"]
[null,null,null,null,null,null,null,"Wheelock",null,null,null,null,null,null,null,null,null,null,null,null,null,null,null,null,"043002021202 - Lamphean Brook-Black River","043002021202","Lamphean Brook-Black River"]
[null,null,null,null,null,null,null,"Whiting",null,null,null,null,null,null,null,null,null,null,null,null,null,null,null,null,"043002021203 - Lords Creek","043002021203","Lords Creek"]
[null,null,null,null,null,null,null,"Whitingham",null,null,null,null,null,null,null,null,null,null,null,null,null,null,null,null,"043002021204 - Stony Brook-Black River","043002021204","Stony Brook-Black River"]
[null,null,null,null,null,null,null,"Williamstown",null,null,null,null,null,null,null,null,null,null,null,null,null,null,null,null,"043002021301 - Headwaters Clyde River","043002021301","Headwaters Clyde River"]
[null,null,null,null,null,null,null,"Williston",null,null,null,null,null,null,null,null,null,null,null,null,null,null,null,null,"043002021302 - Seymour Lake","043002021302","Seymour Lake"]
[null,null,null,null,null,null,null,"Wilmington",null,null,null,null,null,null,null,null,null,null,null,null,null,null,null,null,"043002021303 - Clyde River","043002021303","Clyde River"]
[null,null,null,null,null,null,null,"Windham",null,null,null,null,null,null,null,null,null,null,null,null,null,null,null,null,"043002020701 - Headwaters Tomifobia River","043002020701","Headwaters Tomifobia River"]
[null,null,null,null,null,null,null,"Windsor",null,null,null,null,null,null,null,null,null,null,null,null,null,null,null,null,"043002020701 - Headwaters Tomifobia River","043002020701","Headwaters Tomifobia River"]
[null,null,null,null,null,null,null,"Winhall",null,null,null,null,null,null,null,null,null,null,null,null,null,null,null,null,"043002020702 - Headwaters Niger River","043002020702","Headwaters Niger River"]
[null,null,null,null,null,null,null,"Winooski",null,null,null,null,null,null,null,null,null,null,null,null,null,null,null,null,"043002020704 - Tomifobia River","043002020704","Tomifobia River"]
[null,null,null,null,null,null,null,"Wolcott",null,null,null,null,null,null,null,null,null,null,null,null,null,null,null,null,"043002021404 - Lake Memphremagog","043002021404","Lake Memphremagog"]
[null,null,null,null,null,null,null,"Woodbury",null,null,null,null,null,null,null,null,null,null,null,null,null,null,null,null,"043002020802 - Headwaters Coaticook River","043002020802","Headwaters Coaticook River"]
[null,null,null,null,null,null,null,"Woodford",null,null,null,null,null,null,null,null,null,null,null,null,null,null,null,null,"043002020801 - Averill Creek","043002020801","Averill Creek"]
[null,null,null,null,null,null,null,"Woodstock"]
[null,null,null,null,null,null,null,"Worcester"]

{"sheet":"Sheet1","index":10,"n_rows":9,"n_cols":19,"rows_kept":9,"cut":false,"hidden":true,"merged":[]}
[null,"Lake Willoughby Erosion Control Pathway - Lakeside Site","Construction Completed",44.734589999999997,-72.043509999999998,"Willoughby River",null,null,null,"Developed Impervious",0.1,"Developed Pervious",0.1,null,null,"No","2019-07-12","VT Agency of Transportation","alysha.kane@vermont.gov"]
[null,"Lake Willoughby Erosion Control Pathway - Fountainside Site","Construction Completed",44.736820000000002,-72.043509999999998,"Willoughby River",null,null,null,"Developed Impervious",0.1,"Developed Pervious",0.1,null,null,"No","2019-09-10","VT Agency of Transportation","alysha.kane@vermont.gov"]
[null,"Maidstone Lake Stormwater BMP Installation - Mike & Karen Anderson","Construction Completed",44.648052,-71.651478999999995,null,null,null,null,null,null,null,null,null,null,"No","2019-08-13","Essex County NRCD","essexnrcd@gmail.com"]
[null,"Maidstone Lake Stormwater BMP Installation - Steve Zelma","Construction Completed",44.648918999999999,-71.651844999999994,null,null,null,null,null,null,null,null,null,null,"No","2019-08-13","Essex County NRCD","essexnrcd@gmail.com"]
[null,"Maidstone Lake Stormwater BMP Installation - Bill Corey","Construction Completed",44.659564000000003,-71.651443999999998,null,null,null,null,null,null,null,null,null,null,"No","2019-08-14","Essex County NRCD","essexnrcd@gmail.com"]
[null,"Maidstone Lake Stormwater BMP Installation - Faith & Bruce Kimball","Construction Completed",44.661538,-71.649006,null,null,null,null,null,null,null,null,null,null,"No","2019-08-16","Essex County NRCD","essexnrcd@gmail.com"]
[null,"Hubbardton Encapsulated Soil Lifts","Construction Completed",43.702190000000002,-73.225560000000002,null,null,null,null,"Unpaved roads",1.1100000000000001,null,null,null,null,"No","2019-09-18","Town of Hubbardton","hubbardtonrd@gmail.com"]
[null,"Highgate Portage Trail Stormwater Management","Construction Completed",44.935352999999999,-73.049736999999993,"Mississquoi River",null,null,null,"Mixed Forest",9.15,null,null,null,null,"No","2019-10-31","Northern Forest Canoe Trail","noah@northernforestcanoetrail.org"]
[null,"Pisgah South Trailhead Stormwater Management","Construction Completed",44.71078,-72.023747999999998,"Willoughby River",null,null,null,"Developed Impervious",0.7,null,null,null,null,"No","2019-08-02","VT Forests Parks and Recreation","luke.obrien@vermont.gov"]